Cogmind - Beta 16 @@@ ROGUE MODE // 2025.11.05 @ 11:10:32 Player: szymekc Result: Escaped! Performance ------------- Evolutions (9) 4500 Regions Visited (36) 7200 Robots Destroyed (305) 1525 Value Destroyed (16244) 16244 Prototype IDs (181) 3620 Alien Tech Used (6) 1200 Bonus (35126) 35126 TOTAL SCORE: 69415 Bonus ------- High Alert Combat Kills 2425 Follower Combat Kills 4117 Destroyed Unchained 2000 Network Hubs Disabled 400 Met Data Miner 300 Met Zhirov 300 Met Warlord at Base 500 MAIN.C Attacked Warlord 500 Warlord Defense Kills 240 Built Enhanced Grunts 300 A7 Reached Mainframe 300 Met Warlord at Research 2000 Hacked God Mode 5000 Met Architect 300 Destroyed A8 300 Destroyed A6 400 Destroyed A5 500 Destroyed A4 700 Destroyed A3 800 Destroyed A2 1000 Destroyed Architect 15000 Win 3000 Friendly Fire -5256 Cogmind --------- Core Integrity 1213/1600 Matter 280/300 Energy 578/590 System Corruption 5% Temperature Cool (24) Movement Hovering (34) Location To Epsilon Eridani Parts ------- > --- POWER (3) -------- Improved Quantum Reactor Concept Zero-point Core Concept Zero-point Core > --- PROPULSION (8) --- Gyrokinetic Inverter Combat Linear Gravjet Experimental Antigrav System Experimental Antigrav System Gravjet Array Concept Gyrokinetic System Concept Gyrokinetic System > --- UTILITY (10) ----- Concept Antigrav Storage Unit Concept Weapon Articulator Concept Core Analysis Suite Experimental Armor Integrity Analyzer Femtoactuators Advanced Actuator Array Experimental Reaction Control System Concept Phase Shift Module Experimental Powered Armor Concept Energy Mantle > --- WEAPON (4) ------- Concept Deflector Sword Concept Deflector Sword Concept Deflector Sword Experimental Jetlance > --- INVENTORY (25) --- Concept Weapon Articulator Femtoactuators Advanced Transmission Jammer Experimental Phase Shifter Concept Cloak Mesh Concept Cloak Mesh Centrium Medium Armor Plating Experimental Powered Armor Medium Regenerative Plating Graphene Brace Advanced Force Field Concept Energy Mantle Concept Impact Drone Bay (6/6) Concept Impact Drone Bay (2/6) Compact HERF Cannon Concept Plasma Driver Hypervelocity Railgun Vibroblade Kinetic Spear Experimental Jetlance Peak State ------------ > --- POWER ------------ Improved Quantum Reactor Concept Zero-point Core Concept Zero-point Core > --- PROPULSION ------- Experimental Antigrav System Experimental Antigrav System Gravjet Array Gravjet Array Concept Gyrokinetic System Concept Gyrokinetic System > --- UTILITY ---------- Concept Antigrav Storage Unit Experimental Optical Array Concept Core Analysis Suite Experimental Armor Integrity Analyzer Concept Reaction Jets Concept Phase Shift Module Concept Cloak Mesh Concept Cloak Mesh Medium Regenerative Plating Concept Energy Mantle > --- WEAPON ----------- Concept Deflector Sword Concept Deflector Sword Experimental Jetlance Experimental Jetlance > --- INVENTORY -------- Concept Weapon Articulator Concept Weapon Articulator Femtoactuators Femtoactuators Advanced Actuator Array Advanced Transmission Jammer Experimental Reaction Control System Centrium Medium Armor Plating Graphene Brace Concept Energy Mantle Concept Network Penetrator Concept Network Penetrator Concept Impact Drone Bay Concept Impact Drone Bay Transdimensional Reconstructor Subatomic Replicator Compact HERF Cannon Concept Plasma Driver Hypervelocity Railgun Vibroblade Concept Deflector Sword [Rating: 306] Favorites ----------- Power Light Fission Core Engine Light Ion Engine Power Core Light Fission Core Reactor Micro Antimatter Reactor Propulsion Cooled Nuclear Pulse Thruster Treads Light Treads Hover Unit Experimental Antigrav System Flight Unit Cooled Nuclear Pulse Thruster Utility Medium Regenerative Plating Device Nanoactuators Storage Medium Storage Unit Processor Advanced Signal Interpreter Hackware Improved Hacking Suite Protection Medium Regenerative Plating Weapon Vibroblade Energy Gun Hypervelocity EM Gauss Rifle Energy Cannon Concept Plasma Driver Ballistic Gun Enhanced Autogun Ballistic Cannon Concept Helical Railcannon Launcher Grenade Launcher Special Weapon RU-N14's Throwing Claymores v3 Impact Weapon Shock Maul Slashing Weapon Vibroblade Piercing Weapon Experimental Jetlance Special Melee Weapon Improved Datajack Build | -11 -10 -9 -9 -8 -7 -7 -7 -7 -7 -7 -6 -6 -6 -6 -6 -6 -5 -5 -5 -5 -5 -5 -4 -4 -4 -4 -4 -3 -3 -3 -2 -2 -2 -1 -1 -1 ------- Run | Yrd Mat Mat Sto Mat Fac Was Fac Low Low Dat Pro Fac Ext Cet Arc Hub Fac Was Fac Upp Upp War Pro Fac Upp Upp Zhi Pro Res Tes Res Qua Frg Acc Com Ac0 Slots Evolved 18 | . . 2 . 2 2 . . . . . . 2 . . . . 2 . . . . . . 2 . . . . 2 . 2 . . 2 . . Power 2 | . . . . . . . . . . . . . . . . . . . . . . . . . . . . . . . 1 . . 1 . . Propulsion 6 | . . 1 . 1 1 . . . . . . . . . . . . . . . . . . . . . . . 2 . 1 . . . . . Utility 8 | . . 1 . 1 1 . . . . . . 2 . . . . 2 . . . . . . . . . . . . . . . . 1 . . Weapon 2 | . . . . . . . . . . . . . . . . . . . . . . . . 2 . . . . . . . . . . . . Parts Attached 271 | 7 . . 10 9 11 . 9 . . 1 1 12 8 7 4 6 15 1 25 . . 6 . 3 . . 11 . 8 23 21 12 47 7 2 5 Power 35 | 1 . . 3 2 3 . . . . . . 3 1 . . 1 . . 2 . . . . . . . 1 . 2 2 5 4 4 . . 1 Engine 7 | 1 . . 3 2 1 . . . . . . . . . . . . . . . . . . . . . . . . . . . . . . . Core 11 | . . . . . 2 . . . . . . 3 1 . . 1 . . 2 . . . . . . . . . . . . . 2 . . . Reactor 17 | . . . . . . . . . . . . . . . . . . . . . . . . . . . 1 . 2 2 5 4 2 . . 1 Propulsion 65 | 2 . . 3 1 2 . 5 . . . 1 1 . . . 4 1 . 8 . . 2 . . . . 3 . 3 1 4 3 19 . . 2 Treads 2 | 2 . . . . . . . . . . . . . . . . . . . . . . . . . . . . . . . . . . . . Leg . | . . . . . . . . . . . . . . . . . . . . . . . . . . . . . . . . . . . . . Wheel . | . . . . . . . . . . . . . . . . . . . . . . . . . . . . . . . . . . . . . Hover 11 | . . . . . . . . . . . . . . . . . . . . . . . . . . . . . . . . . 9 . . 2 Flight 52 | . . . 3 1 2 . 5 . . . 1 1 . . . 4 1 . 8 . . 2 . . . . 3 . 3 1 4 3 10 . . . Utility 118 | 2 . . 1 3 3 . 4 . . . . 5 5 4 4 1 11 . 12 . . 3 . 3 . . 4 . 3 13 9 5 13 7 2 1 Device 53 | 2 . . . 1 1 . . . . . . 3 1 . 1 . 7 . 4 . . 1 . 2 . . 1 . 1 7 3 3 8 5 2 . Storage 12 | . . . 1 . . . . . . . . . . . . . 1 . 1 . . . . . . . 1 . . 2 2 1 3 . . . Processor 16 | . . . . . 1 . 1 . . . . 1 . . . . 1 . 1 . . 2 . 1 . . 1 . . 3 3 . 1 . . . Hackware 24 | . . . . 1 . . 1 . . . . . 1 2 3 1 2 . 6 . . . . . . . . . 2 1 . 1 1 2 . . Protection 13 | . . . . 1 1 . 2 . . . . 1 3 2 . . . . . . . . . . . . 1 . . . 1 . . . . 1 Artifact . | . . . . . . . . . . . . . . . . . . . . . . . . . . . . . . . . . . . . . Weapon 53 | 2 . . 3 3 3 . . . . 1 . 3 2 3 . . 3 1 3 . . 1 . . . . 3 . . 7 3 . 11 . . 1 Energy Gun 3 | . . . . . . . . . . . . . . . . . . . . . . . . . . . . . . 1 . . 2 . . . Energy Cannon 8 | . . . . . . . . . . . . . 1 1 . . 1 . 1 . . . . . . . . . . . 1 . 3 . . . Ballistic Gun 11 | 2 . . 1 2 1 . . . . . . . . 2 . . . 1 . . . . . . . . . . . 1 1 . . . . . Ballistic Cannon 1 | . . . . . . . . . . . . . . . . . . . . . . . . . . . . . . . . . 1 . . . Launcher 4 | . . . 1 . . . . . . . . . 1 . . . 1 . . . . . . . . . . . . 1 . . . . . . Special Weapon 5 | . . . 1 . . . . . . . . . . . . . . . . . . 1 . . . . 3 . . . . . . . . . Impact Weapon 5 | . . . . . 2 . . . . . . 2 . . . . . . 1 . . . . . . . . . . . . . . . . . Slashing Weapon 10 | . . . . . . . . . . . . 1 . . . . 1 . 1 . . . . . . . . . . 4 . . 2 . . 1 Piercing Weapon 4 | . . . . . . . . . . 1 . . . . . . . . . . . . . . . . . . . . . . 3 . . . Special Melee Weapon 2 | . . . . 1 . . . . . . . . . . . . . . . . . . . . . . . . . . 1 . . . . . Unidentified Prototypes 61 | . . . 4 1 1 . . . . . . 2 1 4 . . 2 . 1 . . 5 . . . . 4 . 4 8 3 3 15 . 1 2 Parts Lost 20 | . . . . 1 1 . . . 1 . 4 1 1 1 . 2 1 . 3 . . . . . . . . . 1 . . . 1 . . 2 Power 3 | . . . . 1 . . . . . . . 1 . . . . . . 1 . . . . . . . . . . . . . . . . . Propulsion 2 | . . . . . . . . . . . 1 . . . . . . . . . . . . . . . . . . . . . . . . 1 Utility 12 | . . . . . 1 . . . 1 . 1 . 1 1 . 1 1 . 2 . . . . . . . . . 1 . . . 1 . . 1 Weapon 3 | . . . . . . . . . . . 2 . . . . 1 . . . . . . . . . . . . . . . . . . . . Highest Loss Streak 4 | . . . . 1 1 . . . 1 . 4 1 1 1 . 2 1 . 1 . . . . . . . . . 1 . . . 1 . . 1 To Critical Strikes 1 | . . . . . . . . . . . . . . . . . . . . . . . . . . . . . . . . . . . . 1 Average Backups 10 | 1 4 5 4 7 7 5 4 5 4 4 5 4 5 4 5 5 7 9 9 8 8 9 10 10 10 10 9 9 9 13 12 14 19 21 23 19 Power . | . 1 1 . . . . . . . . . . . . . . . 1 . . . . . . . . . . . . . . . . . . Propulsion . | . . . . . . . . 1 1 1 . . . . . . . . 1 1 1 . . . . . . 1 . 1 . 1 1 . 1 . Utility 4 | . . 1 1 2 3 4 4 4 2 2 2 1 1 1 1 1 2 3 2 2 2 2 3 3 3 3 2 3 3 5 4 5 9 14 14 13 Weapon 3 | . 2 3 2 5 3 . . . 1 1 1 . 1 2 2 2 3 4 4 4 4 5 6 6 6 6 3 2 2 3 3 3 4 5 5 5 Tool/Special . | . . . . . . . . . . . . . . . . . . . . . . . . . . . . . . . . . . . . . Unused Backups 36 | . 2 . . 1 1 . . 1 . . . 3 . . . . 4 . 2 . . 1 . . . . . . 1 5 3 2 4 . 1 5 Power 2 | . . . . . . . . . . . . 2 . . . . . . . . . . . . . . . . . . . . . . . . Propulsion 9 | . . . . . . . . . . . . . . . . . . . 1 . . . . . . . . . 1 5 . 1 1 . . . Utility 15 | . 1 . . . . . . 1 . . . 1 . . . . 2 . . . . . . . . . . . . . 3 1 2 . . 4 Weapon 7 | . 1 . . 1 1 . . . . . . . . . . . 1 . 1 . . 1 . . . . . . . . . . . . . 1 Tool/Special 3 | . . . . . . . . . . . . . . . . . 1 . . . . . . . . . . . . . . . 1 . 1 . Average Slot Usage (%) 90 | . 69 44 60 88 96 100 100 100 100 94 92 91 99 99 98 100 87 84 87 88 88 93 94 84 84 84 88 84 84 88 85 88 91 91 91 94 Core 3 | . . . . . 4 7 7 7 7 7 7 5 6 6 6 6 5 5 4 5 5 5 5 5 5 5 4 5 4 . . . 1 8 8 8 Reactor 2 | . . . . . . . . . . . . . . . . . . . . . . . . . . . . . . 3 7 8 6 4 4 4 Hover 3 | . . . . . . . . . . . . . . . . . . . . . . . . . . . . . . . . . 13 24 24 26 Flight 23 | . . . 25 36 38 38 38 38 38 38 38 33 33 33 33 33 23 23 22 23 23 28 29 26 26 26 26 26 28 23 20 23 14 . . . Device 12 | . 8 . . 8 10 15 8 7 7 7 7 15 17 6 6 6 9 11 14 17 17 14 11 10 10 10 13 15 4 11 8 12 13 14 13 23 Storage 3 | . . . . 6 4 . . . . . . . . . . . 3 5 5 5 5 5 5 5 5 5 5 5 4 4 4 4 4 4 4 4 Processor 12 | . . . . . 6 7 7 7 7 7 5 5 6 6 6 6 5 11 12 17 17 19 23 21 21 21 21 21 19 15 17 17 16 12 11 8 Hackware 7 | . . . . 8 7 7 14 15 15 15 15 13 15 25 26 26 22 17 11 5 5 5 5 5 5 5 . . 8 4 3 . . 5 7 . Protection 4 | . . . . 7 6 7 5 7 7 7 7 6 6 6 6 6 5 2 4 5 5 5 5 5 5 5 5 5 4 4 4 4 3 4 4 4 Ballistic Gun 1 | . 28 22 16 6 6 7 7 7 7 2 3 . . . . . . 2 . . . . . . . . . . . 1 . . . . . . Impact Weapon 1 | . . . . . 5 7 7 7 7 . . 5 6 5 4 3 . . . 5 3 . . . . . . . . . . . . . . . Slashing Weapon 7 | . . . . . . . . . . . . 4 5 5 6 6 5 2 4 . 1 4 5 5 5 5 3 5 4 14 16 16 10 8 8 10 Peak Build Rating 306 | 9 9 4 17 35 42 43 60 60 60 57 59 68 74 83 82 82 93 91 103 103 96 108 108 108 108 108 142 121 150 175 188 188 278 306 305 302 Average Rating 130 | 5 5 4 12 29 39 42 48 60 58 54 54 62 67 77 79 81 86 86 93 95 95 105 108 107 108 108 119 113 137 162 182 182 228 301 300 297 On Entrance 96 | . 9 4 4 16 33 42 43 58 60 58 54 46 67 73 76 82 70 90 91 89 95 96 108 108 108 108 108 113 113 140 170 182 185 268 304 301 Avg Prop Armor Cover (%) 8 | . 26 26 26 . 6 . . . . . . . 1 1 1 1 . . . . . . . . . . . . . . . . . . . 2 Naked Turns . | . . . . . . . . . . . . . . . . . . . . . . . . . . . . . . . . . . . . . Heaviest Build 126 | 10 10 3 14 23 23 23 23 18 19 15 18 24 24 25 19 28 31 31 34 31 32 34 31 31 31 31 73 32 47 67 66 68 96 112 126 126 Greatest Support 130 | 40 40 3 15 20 24 23 35 25 35 35 25 35 26 28 20 29 31 31 42 33 33 33 32 32 32 32 41 32 56 77 66 69 130 128 128 128 Greatest Overweight (x) 2 | . . . . 1 . . . . . . . . . 1 . . . . 1 . . 1 . . . . 2 . . . 1 1 1 . . 1 Average Overweight (x) . | . . . . . . . . . . . . . . . . . . . . . . . . . . . . . . . . . . . . . Largest Inventory Capacity 25 | 5 5 5 10 10 10 5 5 5 5 5 5 5 5 5 5 5 10 10 10 10 10 10 10 10 10 10 10 10 10 15 15 15 25 25 25 25 Average Capacity 11 | 5 5 5 5 8 8 5 5 5 5 5 5 5 5 5 5 5 8 10 10 10 10 10 10 10 10 10 10 10 10 14 13 15 21 25 25 25 Most Carried 25 | 3 5 5 5 10 10 5 5 5 5 5 5 5 5 5 5 5 10 10 10 8 9 10 10 10 10 10 10 10 10 15 15 15 25 23 24 21 Average Carried 11 | 1 4 5 4 7 7 5 4 4 4 4 4 4 4 4 5 4 7 9 9 7 8 9 10 10 10 10 9 9 9 13 13 14 19 21 23 19 Final Capacity 25 | 5 5 5 5 10 5 5 5 5 5 5 5 5 5 5 5 5 10 10 10 10 10 10 10 10 10 10 10 10 10 15 15 15 25 25 25 25 Final Carried 24 | 3 5 5 5 10 5 5 5 5 4 5 5 5 5 5 5 5 9 10 9 8 8 10 10 10 10 10 10 10 9 15 15 15 24 22 19 20 Class Distribution -------------------- 39% | Hacker-Sprinter 17% | Machinist-Sprinter 7% | Sprinter 7% | Commander-Sprinter 3% | Machinist-Ninja 3% | Scavenger-Ninja 3% | Machinist-Scout Dominant Class ---------------- Mutant | -10/Materials Mutant | -9/Materials Mutant | -9/Storage Sprinter | -8/Materials Sprinter | -7/Factory Sprinter | -7/Waste Hacker-Sprinter | -7/Factory Hacker-Sprinter | -7/Lower Caves Hacker-Sprinter | -7/Lower Caves Hacker-Sprinter | -7/Data Miner Hacker-Sprinter | -6/Proximity Caves Hacker-Sprinter | -6/Factory Commander-Sprinter | -6/Extension Commander-Sprinter | -6/Cetus Commander-Sprinter | -6/Archives Hacker-Sprinter | -6/Hub_04(d) Hacker-Sprinter | -5/Factory Hacker-Sprinter | -5/Waste Hacker-Sprinter | -5/Factory Machinist-Sprinter | -5/Upper Caves Machinist-Sprinter | -5/Upper Caves Machinist-Sprinter | -5/Warlord Machinist-Sprinter | -4/Proximity Caves Machinist-Sprinter | -4/Factory Machinist-Sprinter | -4/Upper Caves Machinist-Sprinter | -4/Upper Caves Machinist-Sprinter | -4/Zhirov Machinist-Sprinter | -3/Proximity Caves Hacker-Sprinter | -3/Research Hacker-Sprinter | -3/Testing Hacker-Sprinter | -2/Research Machinist-Scout | -2/Quarantine Scavenger-Ninja | -2/Protoforge Wizard-Sprinter | -1/Access Wizard-Sprinter | -1/Command Gladiator | -1/Access_0 Resources | -11 -10 -9 -9 -8 -7 -7 -7 -7 -7 -7 -6 -6 -6 -6 -6 -6 -5 -5 -5 -5 -5 -5 -4 -4 -4 -4 -4 -3 -3 -3 -2 -2 -2 -1 -1 -1 ----------- Run | Yrd Mat Mat Sto Mat Fac Was Fac Low Low Dat Pro Fac Ext Cet Arc Hub Fac Was Fac Upp Upp War Pro Fac Upp Upp Zhi Pro Res Tes Res Qua Frg Acc Com Ac0 Matter Collected 7650 | 306 4 . . 218 502 . 102 . 48 . 54 172 143 212 100 . 460 348 590 54 29 97 29 20 20 . 245 20 80 872 525 285 1554 236 10 315 Remotely . | . . . . . . . . . . . . . . . . . . . . . . . . . . . . . . . . . . . . . Salvage Created 18323 | 132 88 . 83 293 520 . 215 . . . . 685 599 151 256 192 1117 506 1802 . 27 38 . 40 . . 690 . 193 885 799 1553 3982 933 10 2534 Parts 883 | 8 2 . 3 20 16 . 1 . . . . 7 28 10 21 9 59 14 88 . . 1 . 3 . . 31 . 6 44 41 66 234 41 3 127 Haulers Intercepted 29 | . . . 1 3 2 . 3 . . . . 1 . . . . 3 . 6 . . . . . . . . . . 2 3 2 . 3 . . Recyclers Shooed 4 | 1 . . . . 1 . . . . . . . . . . . 2 . . . . . . . . . . . . . . . . . . . Parts Field Recycled . | . . . . . . . . . . . . . . . . . . . . . . . . . . . . . . . . . . . . . Retrieved Matter . | . . . . . . . . . . . . . . . . . . . . . . . . . . . . . . . . . . . . . Parts Self-Destructed 7 | . . . . . . . . . . . . . . . . . . . . . . . . . . 2 5 . . . . . . . . . Prevented 1 | . . . . . . . . . 1 . . . . . . . . . . . . . . . . . . . . . . . . . . . Parts Restored 8 | . . . . . . . . . . . . . . . . . . . . . . . . . . . . . . . . . 8 . . . Faulty 8 | . . . . . . . . . . . . . . . . . . . . . . . . . . . . . . . . . 8 . . . Kills | -11 -10 -9 -9 -8 -7 -7 -7 -7 -7 -7 -6 -6 -6 -6 -6 -6 -5 -5 -5 -5 -5 -5 -4 -4 -4 -4 -4 -3 -3 -3 -2 -2 -2 -1 -1 -1 ------- Run | Yrd Mat Mat Sto Mat Fac Was Fac Low Low Dat Pro Fac Ext Cet Arc Hub Fac Was Fac Upp Upp War Pro Fac Upp Upp Zhi Pro Res Tes Res Qua Frg Acc Com Ac0 Combat Hostiles Destroyed 174 | . . . 1 3 3 . 1 . . . . 4 11 1 . . 14 2 26 . . 1 . . . . . . 3 5 6 12 46 7 . 28 Melee 128 | . . . . . 1 . 1 . . . . 3 5 1 . . 5 . 14 . . . . . . . . . . 4 6 12 41 7 . 28 Guns 8 | . . . . 3 2 . . . . . . . . . . . . 2 . . . 1 . . . . . . . . . . . . . . Cannons 4 | . . . . . . . . . . . . . . . . . . . . . . . . . . . . . 1 1 . . 2 . . . AOE 25 | . . . 1 . . . . . . . . . 3 . . . 9 . 10 . . . . . . . . . 2 . . . . . . . Classes Destroyed 24 | 2 . . 3 3 3 . . . . . . 1 1 . . . 1 1 1 . 1 1 . . . . . . . 1 . 1 4 . . . Worker 13 | . . . 1 . 4 . . . . . . 1 . . . 2 2 . . . . . . . . . . . . 1 1 . . . 1 . Builder 10 | . . . . . . . . . . . . . . . . . 5 . . . . . . . . . . . 1 2 . . 2 . . . Tunneler 4 | 2 . . . . . . . . . . . . . . . 1 1 . . . . . . . . . . . . . . . . . . . Hauler 29 | . . . 1 3 2 . 3 . . . . 1 . . . . 3 . 6 . . . . . . . . . . 2 3 2 . 3 . . Recycler 14 | 1 1 . . . 2 . . . . . . 2 . . . 1 1 . 1 . . . . . . . . . 1 . 1 2 . 1 . . Minesweeper 1 | . . . . . . . . . . . . . . . . . . . . . 1 . . . . . . . . . . . . . . . Operator 16 | . . . . 1 1 . . . . . . 1 2 . 7 . . . 1 . . . . . . . . . . . 2 1 . . . . Drone 1 | . . . . . . . . . . . . . . . . . . . 1 . . . . . . . . . . . . . . . . . Watcher 30 | . . . . . 1 . 1 . . . . 3 1 . . . 5 . 7 . . . . 1 . . . . 1 3 1 3 2 1 . . Swarmer 23 | . . . 1 . . . . . . . . . 3 . . . 8 . 5 . . . . . . . . . 3 . 3 . . . . . Cutter 9 | . . . . 2 . . . . . . . . . . . . . . 7 . . . . . . . . . . . . . . . . . Saboteur 1 | . . . . . . . . . . . . . . . . . . . . . . . . . . . . . . . . . 1 . . . Grunt 21 | . . . . 1 1 . 1 . . . . 2 1 . . . 2 . 3 . . . . . . . . . . 3 . 5 2 . . . Brawler 2 | . . . . . . . . . . . . . . . . . . . . . . . . . . . . . . . . . 2 . . . Duelist 1 | . . . . . . . . . . . . . . . . . . . . . . . . . . . . . . . . 1 . . . . Researcher 6 | . . . . . . . . . . . . . . . . . . . . . . . . . . . . . . 1 . . 5 . . . Sentry 19 | . . . . . 1 . . . . . . . 5 . . . . . . . . . . . . . . . . . 1 . 10 2 . . Hunter 6 | . . . . . . . . . . . . 1 . . . . . . 1 . . . . . . . . . . . . . 4 . . . Programmer 40 | . . . . . 1 . . . . . . 1 1 . . . 4 . 6 . . . . . . . . . . 1 2 6 13 5 . . Behemoth 1 | . . . . . . . . . . . . . 1 . . . . . . . . . . . . . . . . . . . . . . . Compactor 2 | . . . . . . . . . . . . . . . . . . 2 . . . . . . . . . . . . . . . . . . Cetus Guard 1 | . . . . . . . . . . . . . . 1 . . . . . . . . . . . . . . . . . . . . . . Enhanced Grunt 19 | . . . . . . . . . . . . . . . . . . . . . . . . . . . 5 . . . . . . . . 14 Enhanced Sentry 2 | . . . . . . . . . . . . . . . . . . . . . . . . . . . . . . . . . . . . 2 Enhanced Hunter 5 | . . . . . . . . . . . . . . . . . . . . . . . . . . . . . . . . . . . . 5 Lightning 1 | . . . . . . . . . . . . . . . . . . . 1 . . . . . . . . . . . . . . . . . Hotshot 1 | . . . . . . . . . . . . . . . . . . . 1 . . . . . . . . . . . . . . . . . Decapitator 8 | . . . . . . . . . . . . . . . . . . . . . . . . . . . . . . . . . 8 . . . Immortal 3 | . . . . . . . . . . . . . . . . . . . . . . . . . . . . . . . . . 3 . . . Executioner 1 | . . . . . . . . . . . . . . . . . . . . . . 1 . . . . . . . . . . . . . . Alpha 7 2 | . . . . . . . . . . . . . . . . . . . . . . . . . . . . . . . . . 2 . . . V-Series 1 | . . . . . . . . . . . . . . . . . . . . . . . . . . . . . . . . . 1 . . . Best Kill Streak 11 | 2 1 . 2 3 6 . 1 . . . . 3 4 1 7 3 11 1 9 . 1 1 . 1 . . 3 . 4 2 4 5 5 8 1 6 Combat Bots Only 6 | . . . 1 3 1 . 1 . . . . 2 3 1 . . 4 1 6 . . 1 . . . . . . 3 2 3 4 5 6 . 6 Max Kills in Single Turn 6 | 1 1 . 2 1 2 . 1 . . . . 1 3 1 1 2 6 1 5 . 1 1 . 1 . . 1 . 4 1 1 1 1 1 1 1 Gunslinging . | . . . . . . . . . . . . . . . . . . . . . . . . . . . . . . . . . . . . . Exploded 4 | . . . 1 . . . . . . . . . 3 . . . 4 . 4 . . . . . . . . . 2 . . . . . . . Melee 1 | . . . . . 1 . 1 . . . . 1 1 1 . . 1 . 1 . . . . . . . . . . 1 1 1 1 1 . 1 Uniques/NPCs Destroyed 15 | . . . . . . . . . . . . . . 1 . . . . 1 . . . . . . . 3 . . 1 2 . . . . 7 A7 (-6/Cetus) CL-0N3 (-5/Factory) Zhirov (-4/Zhirov) Perun (-4/Zhirov) Svarog (-4/Zhirov) DW-4LL (-3/Testing) DD-05H (-2/Research) Warlord (-2/Research) A8 (-1/Access_0) A6 (-1/Access_0) A5 (-1/Access_0) A2 (-1/Access_0) Architect (-1/Access_0) A4 (-1/Access_0) A3 (-1/Access_0) Combat | -11 -10 -9 -9 -8 -7 -7 -7 -7 -7 -7 -6 -6 -6 -6 -6 -6 -5 -5 -5 -5 -5 -5 -4 -4 -4 -4 -4 -3 -3 -3 -2 -2 -2 -1 -1 -1 -------- Run | Yrd Mat Mat Sto Mat Fac Was Fac Low Low Dat Pro Fac Ext Cet Arc Hub Fac Was Fac Upp Upp War Pro Fac Upp Upp Zhi Pro Res Tes Res Qua Frg Acc Com Ac0 Hostile Shots Fired 1100 | . 7 . 18 36 21 . 29 9 7 . 14 39 114 6 1 34 52 . 94 11 3 17 15 4 1 5 21 20 38 30 19 32 162 13 2 226 Missed 579 | . 2 . 6 16 13 . 15 6 5 . 8 16 64 2 1 12 31 . 46 7 . 7 7 3 . 4 6 9 17 15 13 15 51 3 1 178 Deflected 15 | . . . . . . . . . . . . . . . . . . . . . . . . . . . . . . . . . 10 3 . 2 Hits 521 | . 5 . 12 20 8 . 14 3 2 . 6 23 50 4 . 22 21 . 48 4 3 10 8 1 1 1 15 11 21 15 6 17 111 10 1 48 Melee 21 | . . . . 5 . . . . . . . . . . . . . . 5 . . . . . . . . . . . . . 11 . . . Projectile 500 | . 5 . 12 15 8 . 14 3 2 . 6 23 50 4 . 22 21 . 43 4 3 10 8 1 1 1 15 11 21 15 6 17 100 10 1 48 AOE 7 | . . . . 2 . . . . . . . . . . . . 1 . 3 . . . . . . . . . . . . . . . . 1 Critical Strikes 39 | . . . . 2 . . . . . . . 1 1 . . . 1 . 8 . . . . . . . 1 1 1 1 . 1 14 2 . 5 Actively Blocked 5 | . . . . . . . . . . . . . . . . . . . . . . . . . . . . . . . . . 4 . . 1 Part Disruptions 9 | . . . . . . . . . . . . . . . . . . . 1 . . . . . . . 3 . . . . . 3 1 . 1 Actively Blocked 1 | . . . . . . . . . . . . . . . . . . . . . . . . . . . 1 . . . . . . . . . Damage Taken 10378 | . 55 . 161 358 122 . 187 22 36 . 398 458 366 105 . 383 509 18 1272 79 55 20 135 20 14 13 298 224 523 354 220 369 2455 184 19 946 Core 1487 | . . . 16 . 16 . 13 5 . . 78 124 108 29 . 75 55 . 271 39 . . 35 . . . 10 54 72 24 . 27 303 . . 133 Absorbed by Shields 1444 | . . . . . . . . . . . . . 105 . . . . . . . . . . . . . . . . . . . 373 47 . 919 Redirected to Shielding 147 | . . . . . . . . . . . . . . . . . . . . . . . . . . . 147 . . . . . . . . . Ignored by Resistances 21 | . . . . . . . . . . . . . 15 6 . . . . . . . . . . . . . . . . . . . . . . Regen/Repaired (Parts) 2946 | . . . . . . . 64 . . . . . . 35 23 . 234 179 561 88 . 86 7 18 . 6 74 6 149 280 67 88 666 167 58 90 Core Remaining (%) 84 | 100 100 . 96 100 . . . . . . 84 . . . . 60 . . . . . . 60 . . . . 94 . 92 . . 71 . . 75 Volleys Fired 318 | 9 3 . 9 38 16 . . . . . . . 1 3 . 10 6 53 6 1 . 3 . . . . 4 5 3 57 26 3 56 5 1 . Largest 4 | 2 2 . 1 2 2 . . . . . . . 1 2 . 1 1 1 1 1 . 1 . . . . 4 1 1 1 1 1 1 1 1 . Hottest 140 | 40 40 . 100 100 100 . . . . . . . 45 70 . 90 85 40 120 120 . 40 . . . . . 120 40 120 120 120 140 140 140 . Shots Fired 365 | 18 6 . 9 48 26 . . . 3 . . . 1 6 . 10 6 53 6 1 . 3 . . . . 14 5 3 57 26 3 55 5 1 . Gun 203 | 18 6 . 6 46 24 . . . 3 . . . . 6 . . . 53 . . . 3 . . . . . . 2 36 . . . . . . Cannon 132 | . . . . . . . . . . . . . . . . 10 3 . 2 1 . . . . . . . 5 . 21 26 3 55 5 1 . Launcher 10 | . . . 2 . . . . . . . . . 1 . . . 3 . 4 . . . . . . . . . . . . . . . . . Special 20 | . . . 1 2 2 . . . . . . . . . . . . . . . . . . . . . 14 . 1 . . . . . . . Kinetic 203 | 18 6 . 6 46 24 . . . 3 . . . . 6 . . . 53 . . . 3 . . . . . . 2 36 . . . . . . Thermal 118 | . . . 1 2 2 . . . . . . . . . . 10 3 . 2 1 . . . . . . . 5 . 21 26 3 36 5 1 . Explosive 25 | . . . 2 . . . . . . . . . 1 . . . 3 . 4 . . . . . . . 14 . 1 . . . . . . . Electromagnetic 19 | . . . . . . . . . . . . . . . . . . . . . . . . . . . . . . . . . 19 . . . Robot Hit Streak 16 | 6 5 . 5 16 4 . . . . . . . . 5 . . . 8 1 . . 3 . . . . 15 . 16 11 . . 13 . . . Robot Miss Streak 4 | 2 1 . 2 4 3 . . . . . . . . 1 . . . 2 3 . . . . . . . . . 1 2 . . 4 . 1 . Penetration Max 2 | . . . . . . . . . . . . . . 1 . . . 2 . . . . . . . . . . . 2 . . . . . . Secondary Targets . | . . . . . . . . . . . . . . . . . . . . . . . . . . . . . . . . . . . . . Shots Hit Robots 886 | 12 4 . 5 35 25 . 9 . . 1 . 25 27 13 11 . 25 41 69 . 1 3 . 1 . . 29 . 4 43 31 56 149 31 2 234 Core Hits 477 | 5 2 . 3 12 8 . . . . . . 4 11 7 6 10 42 8 61 . . 3 . 1 . . 29 . 5 22 12 24 73 12 1 116 Critical Kills 6 | . . . . . 1 . . . . . . 1 . . . . . 2 . . . 1 . . . . . . . 1 . . . . . . Critical Parts Destroyed 30 | . . . . . 5 . 1 . . . . 7 6 . . . 1 1 3 . . . . . . . . . 1 5 . . . . . . Critical Strikes 157 | . . . . . 6 . 1 . . . . 8 6 2 . . 6 11 8 . . 1 . . . . 5 . 1 16 3 7 25 2 . 49 Destroy 29 | . . . . . 1 . . . . . . . . 1 . . . 11 . . . 1 . . . . . . 1 14 . . . . . . Smash 26 | . . . . . 5 . 1 . . . . 8 6 . . . 1 . 5 . . . . . . . . . . . . . . . . . Sever 50 | . . . . . . . . . . . . . . 1 . . 5 . 3 . . . . . . . 5 . . 2 3 7 10 . . 14 Impale 52 | . . . . . . . . . . . . . . . . . . . . . . . . . . . . . . . . . 15 2 . 35 Melee Attacks 1207 | . . . . 1 30 . 23 . 6 1 3 50 39 18 12 3 60 . 112 8 2 4 3 11 2 . 29 9 19 67 67 94 212 56 6 260 Impact 147 | . . . . . 30 . 23 . 6 . . 36 18 10 1 . 4 . 9 8 2 . . . . . . . . . . . . . . . Slashing 904 | . . . . . . . . . . . . 14 21 8 11 3 56 . 103 . . 4 3 11 2 . 29 9 19 67 66 94 164 43 5 172 Piercing 154 | . . . . . . . . . . 1 3 . . . . . . . . . . . . . . . . . . . . . 48 13 1 88 Sneak Attacks 116 | . . . . 1 9 . 3 . . 1 . 6 5 4 6 . 5 . 11 . 1 . . . . . 13 . 2 7 7 5 18 9 1 2 Combat Hostiles 21 | . . . . . . . . . . . . 2 4 . . . . . 3 . . . . . . . . . . . . 1 9 2 . . Follow-up Attacks 218 | . . . . . . . . . . . . 4 4 1 1 . . . . . . . . . . . . . . 4 8 25 64 12 1 94 Damage Inflicted 57608 | 110 30 . 183 539 1227 . 846 . . 83 . 1684 1801 640 841 613 3727 496 5561 . 114 26 . 80 . . 3555 . 653 2299 2200 3448 10741 2781 213 13117 Guns 1962 | 110 30 . 74 539 245 . . . . . . . . 178 . . . 496 . . . 26 . . . . . . 9 255 . . . . . . Cannons 1263 | . . . . . . . . . . . . . . . . 80 . . . . . . . . . . . . . 378 . . 805 . . . Explosions 5276 | . . . 109 . . . . . . . . . 141 . . 533 2078 . 1193 . . . . . . . 889 . 333 . . . . . . . Melee 48300 | . . . . . 982 . 846 . . 83 . 1684 1660 462 841 . 1649 . 4368 . 114 . . 80 . . 1904 . 266 1666 2200 3448 9936 2781 213 13117 Ramming . | . . . . . . . . . . . . . . . . . . . . . . . . . . . . . . . . . . . . . Kinetic 1962 | 110 30 . 74 539 245 . . . . . . . . 178 . . . 496 . . . 26 . . . . . . 9 255 . . . . . . Thermal 1603 | . . . . . . . . . . . . . . . . 80 643 . 73 . . . . . . . . . . 378 . . 429 . . . Explosive 4027 | . . . 109 . . . . . . . . . 141 . . . 1435 . 1120 . . . . . . . 889 . 333 . . . . . . . Electromagnetic 909 | . . . . . . . . . . . . . . . . 533 . . . . . . . . . . . . . . . . 376 . . . Impact 5125 | . . . . . 982 . 846 . . . . 1487 759 108 34 . 317 . 478 . 114 . . . . . . . . . . . . . . . Slashing 37709 | . . . . . . . . . . . . 197 901 354 807 . 1332 . 3890 . . . . 80 . . 2666 . 311 1666 2200 3448 8333 2343 213 8968 Piercing 6273 | . . . . . . . . . . 83 . . . . . . . . . . . . . . . . . . . . . . 1603 438 . 4149 Highest Corruption 31 | . . . . . 2 11 11 11 11 11 19 4 5 5 5 2 1 1 9 9 9 9 . . . . 1 1 2 7 . 2 31 2 2 5 Average Corruption 6 | . . . . . 1 6 11 11 11 11 13 3 4 5 4 2 1 1 6 9 9 9 . . . . 1 1 1 6 . 1 11 1 2 4 Corruption Purged 5 | . . . . . . . . . . . . . . . 5 . . . . . . . . . . . . . . . . . . . . . Corruption Blocked . | . . . . . . . . . . . . . . . . . . . . . . . . . . . . . . . . . . . . . Effects 277 | . . . . . 1 2 25 3 7 1 5 7 18 11 3 . 3 2 37 9 7 . . . . . 4 3 2 26 . 6 71 3 2 19 Message Errors 65 | . . . . . 1 . 5 . 1 1 . . 4 1 2 . . 1 6 4 4 . . . . . 1 1 1 11 . 2 14 . 2 3 Matter Fused 62 | . . . . . . . 2 1 2 . 2 2 6 4 1 . 1 . 6 1 1 . . . . . 1 . . 3 . 2 17 1 . 9 Heat Flow Errors 30 | . . . . . . . 3 1 1 . . 2 2 1 . . . . 1 1 . . . . . . 1 1 1 3 . 1 8 1 . 2 Energy Discharges 38 | . . . . . . . 4 . . . . 2 . 3 . . . . 8 . 2 . . . . . 1 1 . 4 . 1 10 . . 2 Parts Rejected 3 | . . . . . . . . . . . . . 1 . . . . . 1 . . . . . . . . . . 1 . . . . . . Parts Fused 1 | . . . . . . . . . . . . . . . . . . . 1 . . . . . . . . . . . . . . . . . Data Loss (minor) 41 | . . . . . . . 5 1 . . . 1 4 2 . . 2 1 9 2 . . . . . . . . . 3 . . 9 . . 2 Data Loss (major) 10 | . . . . . . . . . . . 1 . . . . . . . 1 1 . . . . . . . . . 1 . . 6 . . . Misfires 3 | . . . . . . . . . 3 . . . . . . . . . . . . . . . . . . . . . . . . . . . Alerts 11 | . . . . . . . 1 . . . . . 1 . . . . . 4 . . . . . . . . . . . . . 3 1 . 1 Misdirections 12 | . . . . . . 2 5 . . . 2 . . . . . . . . . . . . . . . . . . . . . 3 . . . Weapon Failures 1 | . . . . . . . . . . . . . . . . . . . . . . . . . . . . . . . . . 1 . . . Overload Shots . | . . . . . . . . . . . . . . . . . . . . . . . . . . . . . . . . . . . . . Overflow Damage 7220 | . . . 7 . 534 . 422 . . 73 . 853 480 44 130 94 305 . 956 . 92 . . . . . 259 . 137 227 400 344 848 559 . 456 Projectiles 63 | . . . . . . . . . . . . . . 1 . . . . . . . . . . . . 62 . . . . . . . . . Explosions 398 | . . . 7 . . . . . . . . . . . . 94 63 . 85 . . . . . . . 80 . 69 . . . . . . . Melee 6759 | . . . . . 534 . 422 . . 73 . 853 480 43 130 . 242 . 871 . 92 . . . . . 117 . 68 227 400 344 848 559 . 456 Knockbacks 14 | . . . . . 5 . . . . . . 4 . . . . 1 . 4 . . . . . . . . . . . . . . . . . Impact 14 | . . . . . 5 . . . . . . 4 . . . . 1 . 4 . . . . . . . . . . . . . . . . . Kinetic . | . . . . . . . . . . . . . . . . . . . . . . . . . . . . . . . . . . . . . Secondary . | . . . . . . . . . . . . . . . . . . . . . . . . . . . . . . . . . . . . . Self-Inflicted Damage 286 | . . . 29 . . . . . . . . . . . . 99 8 . 150 . . . . . . . . . . . . . . . . . Shots 7 | . . . 1 . . . . . . . . . . . . 1 1 . 4 . . . . . . . . . . . . . . . . . Rammed . | . . . . . . . . . . . . . . . . . . . . . . . . . . . . . . . . . . . . . Targets Rammed . | . . . . . . . . . . . . . . . . . . . . . . . . . . . . . . . . . . . . . Kicked . | . . . . . . . . . . . . . . . . . . . . . . . . . . . . . . . . . . . . . Crushed . | . . . . . . . . . . . . . . . . . . . . . . . . . . . . . . . . . . . . . Highest Temperature 501 | . . . 20 62 100 42 180 109 231 217 9 291 265 275 . 228 75 9 191 232 . 135 101 23 . 23 501 239 252 370 254 218 263 228 209 115 Average Temperature 49 | . . . 11 27 35 18 85 81 72 83 3 105 44 102 . 64 25 5 57 86 . 40 36 9 . 12 139 86 53 93 26 60 56 55 74 55 Received Heat Transfer 1629 | . 30 . 30 99 9 . 33 6 . . 21 72 51 9 . 48 45 9 220 . . 9 18 . . . 565 97 18 33 9 18 134 . 9 37 Effects 14 | . . . . . . . . . . . . . 1 . . 2 . . . 2 . . . . . . 3 1 . 4 . . 1 . . . Energy Bleed 2 | . . . . . . . . . . . . . . . . . . . . . . . . . . . 1 1 . . . . . . . . Interference 11 | . . . . . . . . . . . . . 1 . . 2 . . . 2 . . . . . . 1 . . 4 . . 1 . . . Matter Decay 1 | . . . . . . . . . . . . . . . . . . . . . . . . . . . 1 . . . . . . . . . Siege Activations . | . . . . . . . . . . . . . . . . . . . . . . . . . . . . . . . . . . . . . Martial Activations . | . . . . . . . . . . . . . . . . . . . . . . . . . . . . . . . . . . . . . Shielding Activations . | . . . . . . . . . . . . . . . . . . . . . . . . . . . . . . . . . . . . . Robots Disrupted . | . . . . . . . . . . . . . . . . . . . . . . . . . . . . . . . . . . . . . Combat Hostiles . | . . . . . . . . . . . . . . . . . . . . . . . . . . . . . . . . . . . . . Robots Corrupted 26 | . . . . . 5 . 4 . . . . 6 3 . 1 . 2 . 2 . . . . . . . . . . . . . 3 . . . Combat Hostiles 9 | . . . . . . . . . . . . 1 3 . . . . . 2 . . . . . . . . . . . . . 3 . . . Parts Fried 48 | . . . . . 9 . 6 . . . . 6 7 . 2 2 5 . 1 . 2 . . . . . . . . . . . 8 . . . Impact Corruptions 75 | . . . . . 14 . 8 . . . . 26 9 3 3 . 3 . 7 . 2 . . . . . . . . . . . . . . . Robots Melted . | . . . . . . . . . . . . . . . . . . . . . . . . . . . . . . . . . . . . . Combat Hostiles . | . . . . . . . . . . . . . . . . . . . . . . . . . . . . . . . . . . . . . Parts Melted 1 | . . . . . . . . . . . . . . . . . . . . . . . . . . . . . . . . . 1 . . . Heat Transferred 781 | . . . . . . . . . . . . . . . . . 350 . 50 . . . . . . . . . . 81 . . 300 . . . Parts Sabotaged . | . . . . . . . . . . . . . . . . . . . . . . . . . . . . . . . . . . . . . Parts Stolen . | . . . . . . . . . . . . . . . . . . . . . . . . . . . . . . . . . . . . . Parts Stripped . | . . . . . . . . . . . . . . . . . . . . . . . . . . . . . . . . . . . . . Power Chain Reactions . | . . . . . . . . . . . . . . . . . . . . . . . . . . . . . . . . . . . . . Alert | -11 -10 -9 -9 -8 -7 -7 -7 -7 -7 -7 -6 -6 -6 -6 -6 -6 -5 -5 -5 -5 -5 -5 -4 -4 -4 -4 -4 -3 -3 -3 -2 -2 -2 -1 -1 -1 ------- Run | Yrd Mat Mat Sto Mat Fac Was Fac Low Low Dat Pro Fac Ext Cet Arc Hub Fac Was Fac Upp Upp War Pro Fac Upp Upp Zhi Pro Res Tes Res Qua Frg Acc Com Ac0 Maximum Alert Level 4 | . . . 1 . . . . . . . . . 2 1 1 . 1 . 3 . . . . . . . . . . 1 1 2 4 3 1 . Low Security (%) 59 | 100 100 100 96 100 100 100 100 . . . . 100 67 52 71 100 87 100 20 . . . . 100 . . . . 100 96 83 23 1 . . . Level 1 19 | . . . 3 . . . . . . . . . 30 47 28 . 12 . 52 . . . . . . . . . . 3 16 46 14 . 100 . Level 2 8 | . . . . . . . . . . . . . 1 . . . . . 24 . . . . . . . . . . . . 29 12 64 . . Level 3 6 | . . . . . . . . . . . . . . . . . . . 2 . . . . . . . . . . . . . 33 35 . . Level 4 5 | . . . . . . . . . . . . . . . . . . . . . . . . . . . . . . . . . 38 . . . Level 5 . | . . . . . . . . . . . . . . . . . . . . . . . . . . . . . . . . . . . . . High Security . | . . . . . . . . . . . . . . . . . . . . . . . . . . . . . . . . . . . . . Max Security . | . . . . . . . . . . . . . . . . . . . . . . . . . . . . . . . . . . . . . Peak Influence 1493 | 5 30 8 211 102 99 4 67 . . . . 165 410 258 216 161 346 61 936 . . . . 77 . . . . 159 223 351 452 1493 915 372 . Initial 889 | . . 8 . 76 46 4 . . . . . 21 76 190 80 44 73 61 . . . . . 50 . . . . 60 83 83 193 199 889 372 . Average 293 | 1 9 7 93 55 56 2 40 . . . . 83 185 194 170 29 96 11 356 . . . . 43 . . . . 45 145 162 310 902 650 361 . Influence Increases 11553 | 15 80 . 261 210 280 . 295 . 60 . 45 375 869 384 276 283 1290 32 1714 30 5 35 90 104 105 120 10 90 251 555 831 496 1914 314 26 108 Destroy 0b10 Robot/C 3720 | . . . 120 60 60 . 20 . . . . 80 400 160 80 20 280 . 580 . . 20 . . . . . . 60 120 260 240 1020 140 . . Destroy 0b10 Robot/NC 615 | 15 5 . 15 15 50 . 20 . . . . 40 15 10 35 20 85 . 80 . 5 . . 5 . . 10 . 15 40 40 40 25 25 5 . Destroy Leader 608 | . . . 22 16 26 . 8 . . . . 28 42 . . 10 56 . 136 . . . . 2 . . . . 12 20 48 30 94 58 . . Allied During Kill 781 | . . . 16 . . . . . . . . . 287 170 115 . . . 75 . . . . . . . . . . 8 110 . . . . . Trap Triggered on 0b10 30 | . . . . . . . . . . . . . . . . . 30 . . . . . . . . . . . . . . . . . . . Successful Hack 765 | . . . . 27 12 . 189 . . . . 112 33 7 . 3 69 . 81 . . . . 25 . . . . 30 116 37 . 24 . . . Select Force Hacks 110 | . 60 . . . . . . . . . . . . . . 50 . . . . . . . . . . . . . . . . . . . . Disable Machine 1110 | . . . 15 . 45 . . . . . . 60 . 30 15 45 210 . 120 . . . . 15 . . . . . 105 45 75 225 . . 105 Anti-Garrison Action 200 | . . . . . . . . . . . . . . . . . . . . . . . . . . . . . . . . . 200 . . . Destroy Structure 1244 | . . . 13 2 12 . 13 . . . . 10 32 7 1 105 320 32 192 . . . . 12 . . . . 44 56 51 36 236 61 6 3 Partial Spotted 690 | . 15 . 30 15 75 . 30 . . . . 45 60 . 30 . 60 . 60 . . . . 30 . . . . 45 30 30 60 60 15 . . Lose Combat Pursuer 1680 | . . . 30 75 . . 15 . 60 . 45 . . . . 30 180 . 390 30 . 15 90 15 105 120 . 90 45 60 210 15 30 15 15 . Influence Decreases 11553 | 15 60 20 80 289 368 14 246 49 60 . 10 254 684 523 352 258 1264 209 778 477 173 353 13 100 72 53 194 . 192 556 634 486 786 1214 261 456 Entered New Map 3500 | . . 12 . 105 56 10 . 19 . . . 14 80 151 122 82 78 116 . 347 93 321 3 30 32 23 184 . 30 66 65 152 156 594 211 348 Time Decay 5585 | 15 60 8 40 130 302 4 236 30 50 . 10 230 404 222 130 32 378 61 548 130 80 32 10 70 40 30 10 . 152 470 424 334 620 170 50 73 Lost Part 140 | . . . . 10 10 . . . 10 . . 10 10 10 . 20 . . 30 . . . . . . . . . 10 . . . 10 . . 10 Lost Ally 704 | . . . 40 . . . 10 . . . . . 40 140 100 37 20 32 200 . . . . . . . . . . 20 40 . . . . 25 Purge Threat 1624 | . . . . 44 . . . . . . . . 150 . . 87 788 . . . . . . . . . . . . . 105 . . 450 . . Squads Dispatched 76 | . 2 . 5 2 4 . 2 . . . . 5 . . . 3 8 . 15 . . . . 1 . . . . 4 5 2 4 12 2 . . Investigation 18 | . 2 . . . 1 . . . . . . 3 . . . 2 3 . 4 . . . . . . . . . . 1 1 . 1 . . . Extermination 29 | . . . . . 3 . 1 . . . . 2 . . . . 2 . 4 . . . . . . . . . 3 3 . 4 6 1 . . Reinforcement 19 | . . . 2 2 . . 1 . . . . . . . . 1 3 . 5 . . . . 1 . . . . 1 1 1 . . 1 . . Assault 8 | . . . 2 . . . . . . . . . . . . . . . 1 . . . . . . . . . . . . . 5 . . . Garrison 2 | . . . 1 . . . . . . . . . . . . . . . 1 . . . . . . . . . . . . . . . . . Intercept . | . . . . . . . . . . . . . . . . . . . . . . . . . . . . . . . . . . . . . Searches Triggered . | . . . . . . . . . . . . . . . . . . . . . . . . . . . . . . . . . . . . . Unchained Authorized 2 | . . . . . . . . . . . . . . . . . . . 1 . . . . . . . . . . 1 . . . . . . Construction Impeded 1 | . . . . . . . . . . . . . . . . . 1 . . . . . . . . . . . . . . . . . . . Haulers Reinforced 4 | . . . . . . . 1 . . . . . . . . . 1 . 1 . . . . . . . . . . . . . . 1 . . Active Scanning Responses . | . . . . . . . . . . . . . . . . . . . . . . . . . . . . . . . . . . . . . Cargo Convoy Interrupts 1 | . . . . . . . . . . . . . . . . . 1 . . . . . . . . . . . . . . . . . . . Stealth | -11 -10 -9 -9 -8 -7 -7 -7 -7 -7 -7 -6 -6 -6 -6 -6 -6 -5 -5 -5 -5 -5 -5 -4 -4 -4 -4 -4 -3 -3 -3 -2 -2 -2 -1 -1 -1 --------- Run | Yrd Mat Mat Sto Mat Fac Was Fac Low Low Dat Pro Fac Ext Cet Arc Hub Fac Was Fac Upp Upp War Pro Fac Upp Upp Zhi Pro Res Tes Res Qua Frg Acc Com Ac0 Distress Signals 32 | . . . 2 1 1 . 1 . . . . . 2 2 . 5 4 . 3 . . . . 2 . . . . . . 9 . . . . . Communications Jammed 5 | . . . . . . . . . . . . . . . . . . . . . . . . . . . . . . . . . 5 . . . Distress Signals 5 | . . . . . . . . . . . . . . . . . . . . . . . . . . . . . . . . . 5 . . . Times Spotted 567 | . 2 . 22 19 9 5 29 1 9 4 14 13 23 11 5 14 41 6 67 4 1 34 8 8 7 7 2 15 14 12 38 18 46 10 2 47 Peak Tracking Total 16 | . 2 . 11 13 2 5 11 1 5 4 11 3 4 5 1 15 14 5 10 2 . 16 8 5 6 5 2 10 7 4 9 3 5 2 2 7 Tactical Retreats 60 | . . . 1 3 . . 5 . 3 . 1 2 . . . 1 5 . 11 1 . 1 2 1 2 2 . 1 2 2 9 1 2 1 1 . ECM-based Alert Blocks 27 | . . . . . . . 19 . 5 . . 3 . . . . . . . . . . . . . . . . . . . . . . . . Traps | -11 -10 -9 -9 -8 -7 -7 -7 -7 -7 -7 -6 -6 -6 -6 -6 -6 -5 -5 -5 -5 -5 -5 -4 -4 -4 -4 -4 -3 -3 -3 -2 -2 -2 -1 -1 -1 ------- Run | Yrd Mat Mat Sto Mat Fac Was Fac Low Low Dat Pro Fac Ext Cet Arc Hub Fac Was Fac Upp Upp War Pro Fac Upp Upp Zhi Pro Res Tes Res Qua Frg Acc Com Ac0 Traps Triggered 27 | . . . . . 2 . . . . . . 2 2 . . 2 2 . . . . . . . . . . . . . . . 17 . . . Indirectly 2 | . . . . . . . . . . . . . . . . 2 . . . . . . . . . . . . . . . . . . . . Trap Hack Attempts . | . . . . . . . . . . . . . . . . . . . . . . . . . . . . . . . . . . . . . Triggered . | . . . . . . . . . . . . . . . . . . . . . . . . . . . . . . . . . . . . . Disarmed . | . . . . . . . . . . . . . . . . . . . . . . . . . . . . . . . . . . . . . Reprogrammed 11 | . . . . . . . . . . . . . . . . . 11 . . . . . . . . . . . . . . . . . . . Reused 3 | . . . . . . . . . . . . . . . . . 3 . . . . . . . . . . . . . . . . . . . Traps Extracted . | . . . . . . . . . . . . . . . . . . . . . . . . . . . . . . . . . . . . . Installed . | . . . . . . . . . . . . . . . . . . . . . . . . . . . . . . . . . . . . . Triggered 3 | . . . . . . . . . . . . . . . . . 3 . . . . . . . . . . . . . . . . . . . Objects Rigged 8 | . . . . . . . . . . . . . . . . . 8 . . . . . . . . . . . . . . . . . . . Exploded 3 | . . . . . . . . . . . . . . . . . 3 . . . . . . . . . . . . . . . . . . . Machines | -11 -10 -9 -9 -8 -7 -7 -7 -7 -7 -7 -6 -6 -6 -6 -6 -6 -5 -5 -5 -5 -5 -5 -4 -4 -4 -4 -4 -3 -3 -3 -2 -2 -2 -1 -1 -1 ---------- Run | Yrd Mat Mat Sto Mat Fac Was Fac Low Low Dat Pro Fac Ext Cet Arc Hub Fac Was Fac Upp Upp War Pro Fac Upp Upp Zhi Pro Res Tes Res Qua Frg Acc Com Ac0 Machines Disabled 84 | . . . 1 . 3 . . . . . 1 4 . 3 1 3 14 . 8 . . . . 1 . . 2 . . 7 3 5 20 . . 8 Max in Single Turn 6 | . . . 1 . 1 . . . . . 1 1 . 1 . 3 6 . 2 . . . . 1 . . 1 . . 1 1 1 1 . . 1 Garrison Access 15 | . . . . . . . 3 . . . . 2 . . . . 2 . 4 . . . . . . . . . 1 . 2 . 1 . . . Network Hub 2 | . . . . . . . . . . . . . . . . 2 . . . . . . . . . . . . . . . . . . . . Machines Repaired . | . . . . . . . . . . . . . . . . . . . . . . . . . . . . . . . . . . . . . Machines Dismantled . | . . . . . . . . . . . . . . . . . . . . . . . . . . . . . . . . . . . . . Machines Sabotaged 1 | . . . . . . . . . . . . . . . . 1 . . . . . . . . . . . . . . . . . . . . Overloaded Fab Kills . | . . . . . . . . . . . . . . . . . . . . . . . . . . . . . . . . . . . . . Hacking | -11 -10 -9 -9 -8 -7 -7 -7 -7 -7 -7 -6 -6 -6 -6 -6 -6 -5 -5 -5 -5 -5 -5 -4 -4 -4 -4 -4 -3 -3 -3 -2 -2 -2 -1 -1 -1 --------- Run | Yrd Mat Mat Sto Mat Fac Was Fac Low Low Dat Pro Fac Ext Cet Arc Hub Fac Was Fac Upp Upp War Pro Fac Upp Upp Zhi Pro Res Tes Res Qua Frg Acc Com Ac0 Machines Accessed 177 | . 2 . 2 3 9 . 20 1 1 4 . 14 13 2 . 3 21 . 22 . . 4 . 4 . . 4 . 10 13 6 7 6 4 . 2 Terminals 98 | . . . 2 3 5 . 12 . . . . 7 13 2 . 3 13 . 10 . . . . 2 . . . . 4 9 1 4 5 3 . . Fabricators 13 | . . . . . . . . . . . . 1 . . . . 3 . 5 . . . . . . . . . 1 2 1 . . . . . Repair Stations 6 | . . . . . . . 2 . . . . 1 . . . . 1 . 1 . . . . . . . . . . 1 . . . . . . Recycling Units 11 | . 2 . . . 1 . 3 . . . . 1 . . . . 1 . 1 . . . . . . . . . 2 . . . . . . . Scanalyzers 13 | . . . . . 1 . . . . . . 2 . . . . 1 . 1 . . . . 1 . . . . 2 1 1 2 . 1 . . Garrison Access 20 | . . . . . 2 . 3 . . . . 2 . . . . 2 . 4 . . . . 1 . . . . 1 . 3 1 1 . . . Total Hacks 690 | . 3 . 5 12 20 . 54 1 1 31 . 40 26 2 . 12 117 . 98 . . 8 . 20 . . 14 . 61 72 38 12 16 9 . 18 Successful 388 | . 2 . . 6 3 . 33 1 1 31 . 19 16 2 . 9 80 . 65 . . 8 . 11 . . 14 . 20 23 11 . 7 8 . 18 Failed 301 | . 1 . 5 6 17 . 21 . . . . 21 10 . . 3 36 . 33 . . . . 9 . . . . 41 49 27 12 9 1 . . Catastrophic 56 | . . . 2 1 3 . 3 . . . . 3 1 . . . 1 . 7 . . . . 1 . . . . 3 13 8 7 3 . . . Database Lockouts 1 | . . . . . . . . . . . . . . . . . 1 . . . . . . . . . . . . . . . . . . . Manual 249 | . 3 . . 2 7 . 25 . . . . 12 8 1 . 9 57 . 51 . . 1 . 8 . . . . 16 23 9 2 10 5 . . Terminals 407 | . . . 5 12 11 . 37 . . . . 20 26 2 . 12 88 . 61 . . . . 17 . . . . 31 46 9 8 15 7 . . Fabricators 63 | . . . . . . . . . . . . 7 . . . . 17 . 19 . . . . . . . . . 1 9 10 . . . . . Repair Stations 26 | . . . . . . . 4 . . . . 4 . . . . 2 . 9 . . . . . . . . . . 7 . . . . . . Recycling Units 40 | . 3 . . . 2 . 9 . . . . 2 . . . . 4 . 2 . . . . . . . . . 18 . . . . . . . Scanalyzers 47 | . . . . . 4 . . . . . . 5 . . . . 2 . 2 . . . . 1 . . . . 10 10 9 2 . 2 . . Garrison Access 34 | . . . . . 3 . 4 . . . . 2 . . . . 4 . 5 . . . . 2 . . . . 1 . 10 2 1 . . . Terminal Hacks 199 | . . . . 5 1 . 11 1 1 31 . 3 13 2 . 6 38 . 18 . . 8 . 7 . . 14 . 5 6 2 . 3 6 . 18 Record 37 | . . . . . . . . . . 11 . . . 1 . . . . . . . 3 . . . . 5 . . . . . . . . 17 Part Schematic 22 | . . . . . . . . . . 12 . . . . . . 5 . 1 . . . . . . . 4 . . . . . . . . . Robot Schematic 5 | . . . . . . . . . . 5 . . . . . . . . . . . . . . . . . . . . . . . . . . Robot Analysis 1 | . . . . . . . . . . . . . . . . . . . . . . . . . . . 1 . . . . . . . . . Prototype ID Bank 37 | . . . . 3 1 . 1 . . 3 . 2 1 . . 1 5 . 5 . . 4 . 2 . . 4 . 2 2 1 . . . . . Open Door 15 | . . . . . . . . 1 1 . . . 8 1 . . . . . . . 1 . . . . . . . 1 . . . 2 . . Level Access Points 1 | . . . . . . . . . . . . . . . . 1 . . . . . . . . . . . . . . . . . . . . Branch Access Points 7 | . . . . . . . 1 . . . . 1 . . . . 1 . 1 . . . . 1 . . . . 1 . . . . 1 . . Emergency Access Points 6 | . . . . . . . 2 . . . . . . . . . 3 . . . . . . 1 . . . . . . . . . . . . Machine Index 2 | . . . . . . . . . . . . . . . . . 1 . 1 . . . . . . . . . . . . . . . . . Terminal Index 4 | . . . . . . . 1 . . . . . 1 . . . 1 . . . . . . 1 . . . . . . . . . . . . Scanalyzer Index 1 | . . . . . . . 1 . . . . . . . . . . . . . . . . . . . . . . . . . . . . . Garrison Index 1 | . . . . . . . 1 . . . . . . . . . . . . . . . . . . . . . . . . . . . . . Unreport Threat 15 | . . . . 1 . . . . . . . . 1 . . 2 7 . . . . . . . . . . . . . 1 . . 3 . . Locate Traps 7 | . . . . . . . 1 . . . . . 1 . . . 4 . . . . . . . . . . . . . . . 1 . . . Reprogram Traps 4 | . . . . . . . . . . . . . . . . . 4 . . . . . . . . . . . . . . . . . . . Extermination Status 1 | . . . . . . . . . . . . . . . . . . . 1 . . . . . . . . . . . . . . . . . Recall Investigation 4 | . . . . . . . . . . . . . . . . 1 1 . 2 . . . . . . . . . . . . . . . . . Recall Extermination 5 | . . . . . . . . . . . . . . . . . 1 . 1 . . . . 1 . . . . 1 1 . . . . . . Recall Reinforcements 1 | . . . . . . . . . . . . . . . . . . . 1 . . . . . . . . . . . . . . . . . Hauler Manifests 8 | . . . . . . . 1 . . . . . 1 . . 1 3 . 1 . . . . . . . . . . 1 . . . . . . Registered Components 4 | . . . . . . . 1 . . . . . . . . . 1 . 1 . . . . . . . . . 1 . . . . . . . Registered Prototypes 4 | . . . . . . . 1 . . . . . . . . . 1 . 1 . . . . . . . . . . 1 . . . . . . Zone Layout 5 | . . . . 1 . . . . . . . . . . . . . . 2 . . . . 1 . . . . . . . . 1 . . . Proto ID Catalog 1 | . . . . . . . . . . . . . . . . . . . . . . . . . . . . . . . . . 1 . . . Gate Test 138-A 1 | . . . . . . . . . . . . . . . . . . . . . . . . . . . . . . . . . . . . 1 Fabricator Hacks 28 | . . . . . . . . . . . . 3 . . . . 8 . 11 . . . . . . . . . 1 3 2 . . . . . Network Status 1 | . . . . . . . . . . . . 1 . . . . . . . . . . . . . . . . . . . . . . . . Load Schematic 16 | . . . . . . . . . . . . 1 . . . . 4 . 7 . . . . . . . . . 1 2 1 . . . . . Build 11 | . . . . . . . . . . . . 1 . . . . 4 . 4 . . . . . . . . . . 1 1 . . . . . Repair Station Hacks 18 | . . . . . . . 3 . . . . 2 . . . . 2 . 8 . . . . . . . . . . 3 . . . . . . Scan Component 8 | . . . . . . . 1 . . . . . . . . . 1 . 4 . . . . . . . . . . 2 . . . . . . Repair 7 | . . . . . . . 1 . . . . . . . . . 1 . 4 . . . . . . . . . . 1 . . . . . . Refit 3 | . . . . . . . 1 . . . . 2 . . . . . . . . . . . . . . . . . . . . . . . . Recycling Unit Hacks 9 | . . . . . 1 . 3 . . . . 1 . . . . 1 . 1 . . . . . . . . . 2 . . . . . . . Retrieve Components 9 | . . . . . 1 . 3 . . . . 1 . . . . 1 . 1 . . . . . . . . . 2 . . . . . . . Scanalyzer 24 | . . . . . 1 . . . . . . 2 . . . . 2 . 1 . . . . 1 . . . . 8 2 5 . . 2 . . Insert Component 9 | . . . . . . . . . . . . . . . . . 1 . . . . . . . . . . . 4 . 3 . . 1 . . Analyze 5 | . . . . . . . . . . . . . . . . . . . . . . . . . . . . . 3 . 2 . . . . . Retrieve Study 10 | . . . . . 1 . . . . . . 2 . . . . 1 . 1 . . . . 1 . . . . 1 2 . . . 1 . . Garrison Access Hacks 13 | . . . . . . . 3 . . . . 2 . . . . 2 . 4 . . . . . . . . . 1 . 1 . . . . . Seal Access 13 | . . . . . . . 3 . . . . 2 . . . . 2 . 4 . . . . . . . . . 1 . 1 . . . . . Unauthorized Hacks 97 | . 2 . . 1 . . 13 . . . . 6 3 . . 3 27 . 22 . . . . 3 . . . . 3 9 1 . 4 . . . Terminals 74 | . . . . 1 . . 9 . . . . 4 3 . . 3 23 . 14 . . . . 3 . . . . 2 8 1 . 3 . . . Track 6 | . . . . . . . . . . . . . . . . . 3 . 1 . . . . . . . . . . 1 . . 1 . . . Assimilate 8 | . . . . 1 . . 1 . . . . . . . . . 3 . 2 . . . . 1 . . . . . . . . . . . . Botnet 18 | . . . . . . . 2 . . . . 1 1 . . . 4 . 3 . . . . 1 . . . . 1 3 1 . 1 . . . Detonate 1 | . . . . . . . . . . . . . . . . . 1 . . . . . . . . . . . . . . . . . . . Disrupt 2 | . . . . . . . . . . . . . . . . . 2 . . . . . . . . . . . . . . . . . . . Operators 6 | . . . . . . . . . . . . . 1 . . 1 2 . 1 . . . . . . . . . . . . . 1 . . . Skim 31 | . . . . . . . 6 . . . . 3 1 . . . 8 . 7 . . . . 1 . . . . 1 4 . . . . . . Sabotage 2 | . . . . . . . . . . . . . . . . 2 . . . . . . . . . . . . . . . . . . . . Fabricators 13 | . . . . . . . . . . . . 1 . . . . 4 . 7 . . . . . . . . . . 1 . . . . . . Prioritize 6 | . . . . . . . . . . . . . . . . . 2 . 4 . . . . . . . . . . . . . . . . . Haulers 1 | . . . . . . . . . . . . 1 . . . . . . . . . . . . . . . . . . . . . . . . Recompile 6 | . . . . . . . . . . . . . . . . . 2 . 3 . . . . . . . . . . 1 . . . . . . Repair Stations . | . . . . . . . . . . . . . . . . . . . . . . . . . . . . . . . . . . . . . Recycling Units 9 | . 2 . . . . . 4 . . . . 1 . . . . . . 1 . . . . . . . . . 1 . . . . . . . Reject 6 | . . . . . . . 3 . . . . 1 . . . . . . 1 . . . . . . . . . 1 . . . . . . . Mask 1 | . . . . . . . 1 . . . . . . . . . . . . . . . . . . . . . . . . . . . . . Tunnel 2 | . 2 . . . . . . . . . . . . . . . . . . . . . . . . . . . . . . . . . . . Scanalyzers . | . . . . . . . . . . . . . . . . . . . . . . . . . . . . . . . . . . . . . Garrison Access 1 | . . . . . . . . . . . . . . . . . . . . . . . . . . . . . . . . . 1 . . . Jam 1 | . . . . . . . . . . . . . . . . . . . . . . . . . . . . . . . . . 1 . . . Data Cores Recovered 3 | . . . . . . . . . . . . 1 1 . . . . . . . . . . . . . . . . . . 1 . . . . Used 3 | . . . . . . . . . . . . 1 1 . . . . . . . . . . . . . . . . . . 1 . . . . Hacking Detections 113 | . . . 2 3 9 . 17 . . . . 12 9 1 . 1 12 . 11 . . . . 2 . . . . 7 10 5 7 4 1 . . Full Trace Events 7 | . . . 1 . . . . . . . . 3 . . . . 1 . 1 . . . . . . . . . . . 1 . . . . . Feedback Events 1 | . . . . . . . . . . . . 1 . . . . . . . . . . . . . . . . . . . . . . . . Corruption 1 | . . . . . . . . . . . . 1 . . . . . . . . . . . . . . . . . . . . . . . . Feedback Blocked . | . . . . . . . . . . . . . . . . . . . . . . . . . . . . . . . . . . . . . Robot Schematics Acquired 54 | . . . . . . . . . . 5 . . . . . . . . 49 . . . . . . . . . . . . . . . . . Robots Built . | . . . . . . . . . . . . . . . . . . . . . . . . . . . . . . . . . . . . . Authchips . | . . . . . . . . . . . . . . . . . . . . . . . . . . . . . . . . . . . . . Time . | . . . . . . . . . . . . . . . . . . . . . . . . . . . . . . . . . . . . . Total Robot Build Rating . | . . . . . . . . . . . . . . . . . . . . . . . . . . . . . . . . . . . . . Part Schematics Acquired 37 | . . . . . . . . . . 12 . . . . . . 5 . 1 . . . . . . . 4 . 2 3 2 . 8 . . . Parts Built 14 | . . . . . . . . . . . . 1 . . . . 7 . 4 . . . . . . . . . . 1 1 . . . . . Authchips 6 | . . . . . . . . . . . . . . . . . 1 . 4 . . . . . . . . . . 1 . . . . . . Time 665 | . . . . . . . . . . . . 106 . . . . 202 . 202 . . . . . . . . . . 62 93 . . . . . Total Part Build Rating 96 | . . . . . . . . . . . . 6 . . . . 53 . 23 . . . . . . . . . . 7 7 . . . . . Part Studies Acquired 10 | . . . . . 1 . . . . . . 2 . . . . 1 . 1 . . . . 1 . . . . 1 2 . . . 1 . . Parts Repaired 7 | . . . . . . . 1 . . . . . . . . . 1 . 4 . . . . . . . . . . 1 . . . . . . Time 280 | . . . . . . . 50 . . . . . . . . . 25 . 143 . . . . . . . . . . 62 . . . . . . Parts Recycled . | . . . . . . . . . . . . . . . . . . . . . . . . . . . . . . . . . . . . . Recycled Matter . | . . . . . . . . . . . . . . . . . . . . . . . . . . . . . . . . . . . . . Retrieved Matter . | . . . . . . . . . . . . . . . . . . . . . . . . . . . . . . . . . . . . . Retrieved Components 11 | . . . . . . . 4 . . . . 2 . . . . . . 3 . . . . . . . . . 2 . . . . . . . Parts Scanalyzed 4 | . . . . . . . . . . . . . . . . . . . . . . . . . . . . . 2 . 2 . . . . . Part Schematics Acquired 4 | . . . . . . . . . . . . . . . . . . . . . . . . . . . . . 2 . 2 . . . . . Parts Damaged 2 | . . . . . . . . . . . . . . . . . . . . . . . . . . . . . 1 . 1 . . . . . Bothacking | -11 -10 -9 -9 -8 -7 -7 -7 -7 -7 -7 -6 -6 -6 -6 -6 -6 -5 -5 -5 -5 -5 -5 -4 -4 -4 -4 -4 -3 -3 -3 -2 -2 -2 -1 -1 -1 ------------ Run | Yrd Mat Mat Sto Mat Fac Was Fac Low Low Dat Pro Fac Ext Cet Arc Hub Fac Was Fac Upp Upp War Pro Fac Upp Upp Zhi Pro Res Tes Res Qua Frg Acc Com Ac0 Used RIF Installer . | . . . . . . . . . . . . . . . . . . . . . . . . . . . . . . . . . . . . . Robots Hacked 2 | . . . . 1 . . . . . . . . . . . . . . . . . . . . . . . . . . 1 . . . . . Non-combat 1 | . . . . 1 . . . . . . . . . . . . . . . . . . . . . . . . . . . . . . . . Combat . | . . . . . . . . . . . . . . . . . . . . . . . . . . . . . . . . . . . . . Robot Hacks Applied 1 | . . . . 1 . . . . . . . . . . . . . . . . . . . . . . . . . . . . . . . . parse_system 1 | . . . . 1 . . . . . . . . . . . . . . . . . . . . . . . . . . . . . . . . Manual 1 | . . . . . . . . . . . . . . . . . . . . . . . . . . . . . . . 1 . . . . . Relay Couplers Released 1 | . . . . . . . . . . . . . . . . . . . . . . . . . . . . . . . 1 . . . . . Machine Destruction 1 | . . . . . . . . . . . . . . . . . . . . . . . . . . . . . . . 1 . . . . . Fabnet Peak Effective % . | . . . . . . . . . . . . . . . . . . . . . . . . . . . . . . . . . . . . . Robots Rewired 16 | . . . . . . . . . . . . . 15 . . . . . . . . . . . . . . . . 1 . . . . . . Allies Hacked . | . . . . . . . . . . . . . . . . . . . . . . . . . . . . . . . . . . . . . Hacks Repelled . | . . . . . . . . . . . . . . . . . . . . . . . . . . . . . . . . . . . . . Allies | -11 -10 -9 -9 -8 -7 -7 -7 -7 -7 -7 -6 -6 -6 -6 -6 -6 -5 -5 -5 -5 -5 -5 -4 -4 -4 -4 -4 -3 -3 -3 -2 -2 -2 -1 -1 -1 -------- Run | Yrd Mat Mat Sto Mat Fac Was Fac Low Low Dat Pro Fac Ext Cet Arc Hub Fac Was Fac Upp Upp War Pro Fac Upp Upp Zhi Pro Res Tes Res Qua Frg Acc Com Ac0 Total Allies 63 | . . . 2 1 . . 1 . . . . . 24 5 . . 2 19 2 . . . . 1 . . . . . 1 5 . . . . . Largest Group 21 | . . . 2 1 . . 1 . . . . . 21 21 16 10 1 19 11 . . . . 1 . . . . . 1 5 . . . . . Highest-Rated Group 1050 | . . . 62 26 . . 10 . . . . . 738 1050 681 513 26 702 448 . . . . 10 . . . . . 149 685 . . . . . Highest-Rated Ally 332 | . . . 31 26 . . 10 . . . . . 159 159 96 96 26 50 46 . . . . 10 . . . . . 149 332 . . . . . Total Orders 28 | . . . . . . . . . . . . . . . . . . . . . . . . . . . . . . 3 1 . . . . 24 STAY 3 | . . . . . . . . . . . . . . . . . . . . . . . . . . . . . . 2 . . . . . 1 FOLLOW 3 | . . . . . . . . . . . . . . . . . . . . . . . . . . . . . . 1 . . . . . 2 GUARD 1 | . . . . . . . . . . . . . . . . . . . . . . . . . . . . . . . 1 . . . . . EXPLORE 4 | . . . . . . . . . . . . . . . . . . . . . . . . . . . . . . . . . . . . 4 RETURN 17 | . . . . . . . . . . . . . . . . . . . . . . . . . . . . . . . . . . . . 17 Ally Attacks 555 | . . . 24 . . . . . . . . . 81 57 40 24 . 66 53 . . . . . . . . . . 4 56 . . . . 150 Total Damage 21167 | . . . 331 . . . . . . . . . 1662 1349 1056 893 . 2518 1979 . . . . . . . . . . 349 2989 . . . . 8041 Kills 70 | . . . 6 . . . . . . . . . 10 11 5 4 . 9 8 . . . . . . . . . . 1 10 . . . . 6 Allies Corrupted 5 | . . . . . . . . . . . . . . . . 3 . . 1 . . . . . . . . . . 1 . . . . . . Allies Melted 4 | . . . . . . . . . . . . . . . . 1 . . 1 . . 2 . . . . . . . . . . . . . . Intel | -11 -10 -9 -9 -8 -7 -7 -7 -7 -7 -7 -6 -6 -6 -6 -6 -6 -5 -5 -5 -5 -5 -5 -4 -4 -4 -4 -4 -3 -3 -3 -2 -2 -2 -1 -1 -1 ------- Run | Yrd Mat Mat Sto Mat Fac Was Fac Low Low Dat Pro Fac Ext Cet Arc Hub Fac Was Fac Upp Upp War Pro Fac Upp Upp Zhi Pro Res Tes Res Qua Frg Acc Com Ac0 Active Infowar (turns) 14413 | 34 50 . . 270 601 27 522 83 102 . . 434 969 75 98 51 635 387 1554 256 168 1009 224 142 94 75 665 178 323 1087 1021 742 2088 340 109 . Optics 3388 | . . . . . . . . . . . . . . . . . . . . . . . . . . . . . . . 109 742 2088 340 109 . Sensors 12739 | . . . . 270 553 27 522 83 59 . . 404 969 74 98 51 635 387 1554 256 168 1009 224 142 94 75 665 178 323 1087 1000 668 1164 . . . Terrain 71 | 19 50 . . . . . . . . . . . . . . . . . . . . . . . . . . . . . 2 . . . . . Seismic 83 | 34 49 . . . . . . . . . . . . . . . . . . . . . . . . . . . . . . . . . . . Cloaking 490 | . . . . . . . . . . . . . . . . . . . . . . . . 1 . . . . . . . . 72 315 102 . Jamming 1365 | . . . . . . . . . . . . . . . . . . . . . . . . . . . . . . 33 . 173 754 298 107 . ECM 264 | . . . . . 51 . 108 . 43 . . 61 . 1 . . . . . . . . . . . . . . . . . . . . . . Robot Analysis Total 102 | . . . . . . . . . . . . . . . . . . . 101 . . . . . . . 1 . . . . . . . . . Derelict Logs Recovered 7 | . . . . . . . . 1 1 . . . . . . . . . . 1 1 . . . 1 2 . . . . . . . . . . Drone Launches 30 | . . . . . . . . . . . . . . . . . . . . . . . . . . . . . . . . . . . . 30 Drone Recoveries 26 | . . . . . . . . . . . . . . . . . . . . . . . . . . . . . . . . . . . . 26 Exploration | -11 -10 -9 -9 -8 -7 -7 -7 -7 -7 -7 -6 -6 -6 -6 -6 -6 -5 -5 -5 -5 -5 -5 -4 -4 -4 -4 -4 -3 -3 -3 -2 -2 -2 -1 -1 -1 ------------- Run | Yrd Mat Mat Sto Mat Fac Was Fac Low Low Dat Pro Fac Ext Cet Arc Hub Fac Was Fac Upp Upp War Pro Fac Upp Upp Zhi Pro Res Tes Res Qua Frg Acc Com Ac0 Turns Passed 17102 | 119 175 21 120 288 666 27 522 83 151 24 69 519 969 472 262 104 906 387 1714 266 168 1079 224 142 94 75 665 178 323 1186 1070 742 2088 340 115 749 Spaces Moved 33481 | 56 253 42 222 524 1591 98 1553 348 421 98 259 1558 1234 410 214 185 2290 425 3772 757 569 1556 465 518 405 357 519 352 1119 2207 2762 1311 2774 546 234 1477 Core 301 | 8 224 42 27 . . . . . . . . . . . . . . . . . . . . . . . . . . . . . . . . . Treads 77 | 48 29 . . . . . . . . . . . . . . . . . . . . . . . . . . . . . . . . . . . Legs . | . . . . . . . . . . . . . . . . . . . . . . . . . . . . . . . . . . . . . Wheels . | . . . . . . . . . . . . . . . . . . . . . . . . . . . . . . . . . . . . . Hover 3280 | . . . . . . . . . . . . . . . . . . . . . . . . . . . . . . . . . 1023 546 234 1477 Flight 29823 | . . . 195 524 1591 98 1553 348 421 98 259 1558 1234 410 214 185 2290 425 3772 757 569 1556 465 518 405 357 519 352 1119 2207 2762 1311 1751 . . . Fastest Speed 5 | 50 50 50 34 31 26 26 5 23 5 5 22 5 22 14 26 23 23 27 17 27 27 21 21 21 21 21 21 21 7 19 29 21 7 33 33 33 Average Speed 26 | 144 62 50 36 31 26 26 25 23 22 19 22 21 22 26 26 23 26 27 26 27 27 22 21 21 21 21 43 21 18 25 29 27 24 33 33 33 Slowest Speed 161 | 160 160 50 60 101 31 26 26 23 23 23 26 22 26 91 26 26 27 27 97 27 27 92 21 21 21 21 161 21 20 26 106 105 103 33 33 96 Overloaded Moves 194 | . . . . . . . 7 . 15 15 . 6 . 5 . . . . 71 . . . . . . . 2 . 8 12 . 15 38 . . . Propulsion Burnouts . | . . . . . . . . . . . . . . . . . . . . . . . . . . . . . . . . . . . . . Robots Hopped 210 | . . . 4 6 11 . 18 . 1 3 6 18 30 1 . 6 9 . 29 . . . 5 1 1 . . 2 2 20 4 29 4 . . . Potential Cave-ins 11 | . . . . . . . . . . . . . . . . . . . . . . . . . . . . . . 2 . . 8 1 . . Cave-ins Triggered 1 | . . . . . . . . . . . 1 . . . . . . . . . . . . . . . . . . . . . . . . . Teleports 3 | . . . . . . . . . . . . . . . . . . . . . . . . . . . . . . . . . 1 . 1 1 Exploration Rate (%) 55 | 5 43 8 45 31 39 75 40 53 59 76 55 43 84 71 82 25 45 85 68 87 70 90 66 18 67 66 67 52 28 89 75 93 42 16 11 81 Regions Visited 36 Branch Regions 22 Pre-discovered Areas 13 | . 2 . . . . . 4 . . 1 . . . . . . 2 . 1 . . . . . . . 3 . . . . . . . . . Known Exits Taken 26 | . . . . . . . 1 1 1 1 1 1 1 1 1 1 . . 1 1 1 1 1 1 1 1 1 1 1 1 1 1 1 1 . . Unknown Exits Taken 6 | 1 1 1 1 1 . . . . . . . . . . . . . . . . . . . . . . . . . . . . . . 1 . Scrap Searched 15 | . . . . . . . . . 1 . 1 . . . . . . . . 1 3 . 3 . 2 3 . 1 . . . . . . . . Spaces Dug 329 | . . . 12 2 12 . 13 . 6 . 2 10 4 . . 5 70 . 62 8 1 4 3 6 2 . . 9 15 26 14 11 17 13 1 1 Terrain Destroyed 780 | . . . 12 2 12 . 13 . 7 . 2 10 25 . . 177 158 . 123 9 1 4 3 6 2 . 42 14 30 35 16 14 38 21 3 1 Melee 216 | . . . . . 12 . 13 . 6 . 2 10 4 . . 3 26 . 27 8 1 4 3 6 2 . . 9 15 25 14 11 2 11 1 1 Projectile 84 | . . . . 2 . . . . 1 . . . . . . 7 3 . 2 1 . . . . . . . 5 . 10 2 3 36 10 2 . AOE 480 | . . . 12 . . . . . . . . . 21 . . 167 129 . 94 . . . . . . . 42 . 15 . . . . . . . Terrain Rammed . | . . . . . . . . . . . . . . . . . . . . . . . . . . . . . . . . . . . . . Walls Destroyed . | . . . . . . . . . . . . . . . . . . . . . . . . . . . . . . . . . . . . . Machines Disabled . | . . . . . . . . . . . . . . . . . . . . . . . . . . . . . . . . . . . . . Actions | -11 -10 -9 -9 -8 -7 -7 -7 -7 -7 -7 -6 -6 -6 -6 -6 -6 -5 -5 -5 -5 -5 -5 -4 -4 -4 -4 -4 -3 -3 -3 -2 -2 -2 -1 -1 -1 --------- Run | Yrd Mat Mat Sto Mat Fac Was Fac Low Low Dat Pro Fac Ext Cet Arc Hub Fac Was Fac Upp Upp War Pro Fac Upp Upp Zhi Pro Res Tes Res Qua Frg Acc Com Ac0 Total 40097 | 75 266 41 243 597 1756 99 1621 350 465 97 259 1640 1836 733 401 222 2503 644 4347 801 579 2267 581 532 409 356 910 436 1191 2656 2953 1633 4034 651 263 1650 Wait 4354 | . . . . 15 90 . 43 . 39 . . 17 456 285 164 18 78 158 402 33 7 680 119 . 4 . 313 65 25 261 38 245 747 47 5 . Move 33059 | 55 252 41 213 514 1570 97 1518 347 418 91 248 1522 1183 407 213 173 2274 424 3716 756 568 1555 456 515 402 356 518 348 1114 2167 2753 1256 2765 545 233 1476 Hop 176 | . . . 4 3 10 . 16 . 1 3 4 17 20 1 . 5 7 . 26 . . . 3 1 1 . . 1 2 18 4 25 4 . . . Pick Up 184 | 4 5 . 2 7 6 1 1 1 . . 2 7 2 3 1 1 14 3 18 . . 6 . . . . 11 . 4 17 17 7 36 1 3 4 Fast Attach 126 | 6 . . 3 5 5 . 5 . . . . 6 6 2 4 2 10 . 7 . . 5 . . . . 4 . 2 9 9 3 32 . . 1 Attach 94 | 1 . . 2 4 3 . . . 1 . 2 3 . 1 . 1 6 1 10 2 1 . . . . . 6 4 4 4 2 1 21 3 6 5 Detach 68 | . . . 1 4 3 . . . . 1 . 2 . . 2 1 5 1 4 1 1 2 . . . . 1 4 2 6 3 1 17 . 4 2 Swap 367 | . . . 6 4 11 . 7 1 . 1 . 7 6 11 3 4 14 2 32 . . 5 . 4 . . 10 . 12 47 32 29 90 16 6 7 Drop 217 | . 6 . 3 2 12 1 8 1 . . . 11 6 4 3 4 14 2 14 . . 7 . 1 . . 14 . 4 18 25 10 45 . 1 1 Fire 318 | 9 3 . 9 38 16 . . . . . . . 1 3 . 10 6 53 6 1 . 3 . . . . 4 5 3 57 26 3 56 5 1 . Melee 881 | . . . . 1 30 . 23 . 6 1 3 41 32 16 11 3 60 . 112 8 2 4 3 11 2 . 29 9 19 48 44 53 118 34 4 154 Ram . | . . . . . . . . . . . . . . . . . . . . . . . . . . . . . . . . . . . . . Kick . | . . . . . . . . . . . . . . . . . . . . . . . . . . . . . . . . . . . . . Crush . | . . . . . . . . . . . . . . . . . . . . . . . . . . . . . . . . . . . . . Escape Stasis 171 | . . . . . . . . . . . . 7 45 . . . 15 . . . . . . . . . . . . 1 . . 103 . . . Rewire 82 | . . . . . . . . . . . . . 79 . . . . . . . . . . . . . . . . 3 . . . . . . Trap . | . . . . . . . . . . . . . . . . . . . . . . . . . . . . . . . . . . . . . Miscellaneous . | . . . . . . . . . . . . . . . . . . . . . . . . . . . . . . . . . . . . . Route ------- -11/Scrapyard -10/Materials -9/Materials -9/Storage -8/Materials -7/Factory (discovered 4 exits: *Fac x3 / *Low) -7/Waste -7/Factory (discovered 6 exits: *Fac x4 / *Low x2) -7/Lower Caves -7/Lower Caves (discovered 2 exits: *Fac / *Dat) -7/Data Miner -6/Proximity Caves -6/Factory (discovered 5 exits: Fac / Low x2 / *Ext x2) -6/Extension (discovered 2 exits: *Fac / *Cet) -6/Cetus -6/Archives (discovered 3 exits: *Fac / *Hub x2) -6/Hub_04(d) (discovered 4 exits: *Fac x4) -5/Factory (discovered 6 exits: *Fac x4 / *Upp x2) -5/Waste -5/Factory (discovered 6 exits: *Fac x4 / *Upp x2) -5/Upper Caves -5/Upper Caves (discovered 2 exits: *Fac / *War) -5/Warlord -4/Proximity Caves -4/Factory (discovered 7 exits: *Res x4 / *Upp x2 / Arm) -4/Upper Caves -4/Upper Caves -4/Zhirov -3/Proximity Caves -3/Research (discovered 4 exits: Res x2 / *Tes x2) -3/Testing -2/Research (discovered 3 exits: *Acc x2 / *Qua) -2/Quarantine (discovered 3 exits: *Acc / [*Sec] / *Frg) -2/Protoforge -1/Access -1/Command -1/Access_0 To Epsilon Eridani History --------- Turn | Location | Event 2 | -11/Scrapyard | Met Revision 17 4 | -11/Scrapyard | Discovered new exit (range 15) 120 | -11/Scrapyard | Entered Materials 287 | -10/Materials | Discovered new exit (range 15) 295 | -10/Materials | Entered another Materials area 295 | -9/Materials | Evolved 2 slots: Propulsion x1, Utility x1 303 | -9/Materials | Build established: Mutant 314 | -9/Materials | Discovered new exit (range 5) 316 | -9/Materials | Entered Storage 348 | -9/Storage | Met a pair of Derelict thieves 372 | -9/Storage | Garrison activated, responded to threat 432 | -9/Storage | Discovered new exit (range 12) 436 | -9/Storage | Entered Materials 436 | -8/Materials | Evolved 2 slots: Propulsion x1, Utility x1 720 | -8/Materials | Discovered new exit (range 15) 724 | -8/Materials | Entered Factory 724 | -7/Factory | Evolved 2 slots: Propulsion x1, Utility x1 871 | -7/Factory | Build established: Sprinter 1195 | -7/Factory | Discovered new exit (range 5) 1196 | -7/Factory | Identified exit to Lower Caves 1282 | -7/Factory | Discovered new exit (range 11) 1322 | -7/Factory | Discovered new exit (range 16) 1324 | -7/Factory | Discovered new exit (range 16) 1326 | -7/Factory | Identified exit to Factory 1390 | -7/Factory | Sucked down chute 1390 | -7/Factory | Entered Waste 1400 | -7/Waste | Spotted C-40 Crusher 1402 | -7/Waste | Spotted C-40 Crusher 1403 | -7/Waste | Spotted C-40 Crusher 1405 | -7/Waste | EMP discharged 1405 | -7/Waste | System corruption reached 10% 1409 | -7/Waste | Spotted C-40 Crusher 1412 | -7/Waste | Spotted C-40 Crusher 1413 | -7/Waste | Discovered new exit (range 14) 1417 | -7/Waste | Identified exit to Factory 1417 | -7/Waste | Entered Factory 1570 | -7/Factory | Discovered exit to Factory (range 16) 1653 | -7/Factory | Learned location of Zion (-6) 1686 | -7/Factory | Learned 4 Hub_04(d) zone layouts 1720 | -7/Factory | Learned location of Proximity Caves (-4) 1723 | -7/Factory | Learned location of 3 exits from Factory 1724 | -7/Factory | Learned Hub_04(d) emergency access door positions 1725 | -7/Factory | Learned 2 Proximity Caves zone layouts 1734 | -7/Factory | Learned location of 2 exits from Archives 1736 | -7/Factory | Build established: Hacker-Sprinter 1751 | -7/Factory | Learned 2 Upper Caves zone layouts 1776 | -7/Factory | Repaired Imp. Surge Thruster 1939 | -7/Factory | Entered Lower Caves 1940 | -7/Lower Caves | Encountered a Warlord checkpoint 1985 | -7/Lower Caves | Attracted the attention of an 0b10 checkpoint 2006 | -7/Lower Caves | Discovered new exit (range 15) 2014 | -7/Lower Caves | Identified exit to Lower Caves 2022 | -7/Lower Caves | Entered another Lower Caves area 2023 | -7/Lower Caves | Discovered exit to Factory (range 15) 2028 | -7/Lower Caves | Learned 4 Factory zone layouts 2169 | -7/Lower Caves | Discovered new exit (range 10) 2172 | -7/Lower Caves | Identified exit to Data Miner 2173 | -7/Lower Caves | Entered Data Miner 2176 | -7/Data Miner | Discovered new exit (range 6) 2177 | -7/Data Miner | Identified exit to Proximity Caves 2180 | -7/Data Miner | Met Data Miner 2186 | -7/Data Miner | Learned location of Section 7 (-2) 2186 | -7/Data Miner | Acquired the access code to Warlord's prototype stash 2188 | -7/Data Miner | Received God Mode back door access code from Data Miner 2197 | -7/Data Miner | Entered Proximity Caves 2208 | -6/Proximity Caves | Found Alien Artifact 2235 | -6/Proximity Caves | Spotted B-75 Beast 2244 | -6/Proximity Caves | Crushed by falling debris 2265 | -6/Proximity Caves | Discovered exit to Factory (range 6) 2266 | -6/Proximity Caves | Entered Factory 2266 | -6/Factory | Evolved 2 slots: Utility x2 2267 | -6/Factory | Identified exit to Extension 2268 | -6/Factory | Identified exit to Factory 2268 | -6/Factory | Identified exit to Lower Caves 2277 | -6/Factory | Lost 4 parts (1n1u2w) 2541 | -6/Factory | Fabricated Adv. System Shield? 2597 | -6/Factory | Found Rocket Array 2785 | -6/Factory | Entered Extension 2797 | -6/Extension | Rescued a captive Derelict 3013 | -6/Extension | Rescued A7 3107 | -6/Extension | Rescued a captive Derelict 3108 | -6/Extension | Rescued a captive Derelict 3108 | -6/Extension | Rescued a captive Derelict 3119 | -6/Extension | Rescued a captive Derelict 3208 | -6/Extension | Rescued a captive Derelict 3212 | -6/Extension | Rescued a captive Derelict 3331 | -6/Extension | Spotted B-75 Beast 3375 | -6/Extension | Destroyed B-75 Beast 3386 | -6/Extension | Spotted B-75 Beast 3412 | -6/Extension | Allies destroyed B-75 Beast 3424 | -6/Extension | Rescued a captive Derelict 3424 | -6/Extension | Rescued a captive Derelict 3450 | -6/Extension | Rescued a captive Derelict 3450 | -6/Extension | Rescued a captive Derelict 3512 | -6/Extension | Build established: Commander-Sprinter 3631 | -6/Extension | Discovered exit to Factory (range 10) 3631 | -6/Extension | Discovered new exit (range 6) 3641 | -6/Extension | Identified exit to Cetus 3754 | -6/Extension | Entered Cetus 3754 | -6/Cetus | Accompanied by 21 allies (A7) 3758 | -6/Cetus | Spotted Cetus Guard 3759 | -6/Cetus | Acquired a Cetus Manufacturing Module code from A7 3759 | -6/Cetus | Spotted Cetus Guard 3760 | -6/Cetus | Spotted Cetus Guard 3768 | -6/Cetus | Spotted Cetus Guard 3776 | -6/Cetus | Destroyed Cetus Guard 3779 | -6/Cetus | Allies destroyed Cetus Guard 3787 | -6/Cetus | Allies destroyed Cetus Guard 3790 | -6/Cetus | Allies destroyed Cetus Guard 3815 | -6/Cetus | Lost 5 allies 3841 | -6/Cetus | Escorted A7 to Cetus Mainframe 3862 | -6/Cetus | Started Cetus Manufacturing Module 3887 | -6/Cetus | Manufactured an Enhanced Grunt 3912 | -6/Cetus | Manufactured an Enhanced Grunt 3937 | -6/Cetus | Manufactured an Enhanced Grunt 3962 | -6/Cetus | Manufactured an Enhanced Grunt 3987 | -6/Cetus | Manufactured an Enhanced Grunt 4004 | -6/Cetus | Cetus Manufacturing Module disabled 4033 | -6/Cetus | Found a strange terminal 4037 | -6/Cetus | Discovered new exit (range 15) 4116 | -6/Cetus | Spotted Cetus Guard 4116 | -6/Cetus | Spotted Cetus Guard 4122 | -6/Cetus | Spotted Cetus Guard 4126 | -6/Cetus | Spotted Cetus Guard 4131 | -6/Cetus | Allies destroyed Cetus Guard 4131 | -6/Cetus | Allies destroyed Cetus Guard 4131 | -6/Cetus | Allies destroyed Cetus Guard 4155 | -6/Cetus | Found Prototype Protection 4155 | -6/Cetus | Identified Med. Regenerative Plating 4156 | -6/Cetus | Murdered A7 4159 | -6/Cetus | Lost 4 allies 4161 | -6/Cetus | Extracted ID and sensor layout for unrecognized location from A7's data core 4187 | -6/Cetus | Identified exit to Archives 4226 | -6/Cetus | Entered Archives 4226 | -6/Archives | Accompanied by 16 allies 4227 | -6/Archives | Identified exit to Hub_04(d) 4280 | -6/Archives | Unable to access archive contents 4281 | -6/Archives | Discovered exit to Hub_04(d) (range 15) 4291 | -6/Archives | Lost 6 allies 4488 | -6/Archives | Entered Hub_04(d) 4488 | -6/Hub_04(d) | Accompanied by 10 allies 4520 | -6/Hub_04(d) | Network Hub disabled 4574 | -6/Hub_04(d) | Lost 6 allies 4590 | -6/Hub_04(d) | Network Hub disabled 4590 | -6/Hub_04(d) | Spotted Lightning 4592 | -6/Hub_04(d) | Entered Factory 4592 | -5/Factory | Evolved 2 slots: Utility x2 4605 | -5/Factory | Identified Dimensional Node Initializer 4627 | -5/Factory | Identified exit to Upper Caves 4642 | -5/Factory | Discovered new exit (range 8) 4654 | -5/Factory | Identified exit to Factory 4776 | -5/Factory | Fabricated Enh. Nova Cannon? 4815 | -5/Factory | Fabricated Adv. Reaction Control System? 4849 | -5/Factory | Fabricated Nanoactuators (x2) 4859 | -5/Factory | Learned 4 Research zone layouts 4884 | -5/Factory | Build established: Hacker-Sprinter 4915 | -5/Factory | Learned Quarantine stockpile data 4918 | -5/Factory | Central database locked down 5080 | -5/Factory | Loaded intel: 26 terminal locations 5108 | -5/Factory | Fabricated Vibroblade (x1) 5114 | -5/Factory | Learned Testing interactive machine intel 5158 | -5/Factory | Learned Testing emergency access door positions 5199 | -5/Factory | Repaired Lgt. Fission Core+ 5428 | -5/Factory | Cargo convoy interrupted 5498 | -5/Factory | Sucked down chute 5498 | -5/Factory | Entered Waste 5499 | -5/Waste | Identified exit to Factory 5501 | -5/Waste | Spotted C-40 Crusher 5504 | -5/Waste | Spotted C-40 Crusher 5508 | -5/Waste | Spotted C-40 Crusher 5512 | -5/Waste | Spotted C-40 Crusher 5512 | -5/Waste | Spotted C-40 Crusher 5513 | -5/Waste | Spotted C-40 Crusher 5558 | -5/Waste | Destroyed C-40 Crusher 5608 | -5/Waste | Destroyed C-40 Crusher 5674 | -5/Waste | Warlord forces began an assault 5719 | -5/Waste | Allies destroyed C-40 Crusher 5722 | -5/Waste | Allies destroyed C-40 Crusher 5728 | -5/Waste | Allies destroyed C-40 Crusher 5734 | -5/Waste | Allies destroyed C-40 Crusher 5740 | -5/Waste | Lost 8 allies 5885 | -5/Waste | Entered Factory 5885 | -5/Factory | Accompanied by 11 allies 5899 | -5/Factory | Spotted B-75 Beast 5932 | -5/Factory | Garrison activated, responded to threat 6077 | -5/Factory | Fabricated Cld. Cesium-ion Thruster? 6147 | -5/Factory | Unchained authorized (CL-0N3) 6173 | -5/Factory | Fabricated Cld. Nuclear Pulse Thruster (x1) 6357 | -5/Factory | T-07 Excavator reconstituted as Lightning 6357 | -5/Factory | Spotted Lightning 6394 | -5/Factory | Destroyed Lightning 6394 | -5/Factory | Lightning reconstituted as CL-0N3 6409 | -5/Factory | Discovered exit to Factory (range 15) 6496 | -5/Factory | Discovered exit to Factory (range 16) 6593 | -5/Factory | T-07 Excavator reconstituted as Hotshot 6597 | -5/Factory | Spotted Hotshot 6649 | -5/Factory | Destroyed Hotshot 6649 | -5/Factory | Hotshot reconstituted as CL-0N3 6670 | -5/Factory | Destroyed CL-0N3 6671 | -5/Factory | Extracted schematics, analyses from CL-0N3's data core 6725 | -5/Factory | Discovered exit to Factory (range 11) 6760 | -5/Factory | Discovered exit to Factory (range 7) 6779 | -5/Factory | Learned Research trap positions 6819 | -5/Factory | Learned Research non-interactive machine intel 6848 | -5/Factory | Learned location of 1 exit from Extension 6854 | -5/Factory | Repaired Cld. Cesium-ion Thruster 6866 | -5/Factory | Learned location of Quarantine (-2) 6877 | -5/Factory | Learned location of 3 exits from Factory 6878 | -5/Factory | Learned Quarantine scanalyzer intel 6899 | -5/Factory | Repaired Cld. Nuclear Pulse Thruster 6903 | -5/Factory | Loaded intel: 74 trap records 6935 | -5/Factory | Repaired Hyp. Railgun 6961 | -5/Factory | Repaired Lgt. Fission Core+ 7173 | -5/Factory | Fabricated Cld. Nuclear Pulse Thruster (x1) 7218 | -5/Factory | Fabricated Cld. Nuclear Pulse Thruster? 7385 | -5/Factory | First assault squad dispatched 7599 | -5/Factory | Entered Upper Caves 7600 | -5/Upper Caves | Identified exit to Upper Caves 7620 | -5/Upper Caves | Build established: Machinist-Sprinter 7865 | -5/Upper Caves | Entered another Upper Caves area 7866 | -5/Upper Caves | Identified exit to Warlord 7879 | -5/Upper Caves | Discovered exit to Factory (range 15) 8020 | -5/Upper Caves | Learned Factory emergency access door positions 8033 | -5/Upper Caves | Entered Warlord 8043 | -5/Warlord | System corruption cleaned by Quarantine Array 8145 | -5/Warlord | Found Prototype Special Weapon 8145 | -5/Warlord | Identified RU-N14's Throwing Claymores v3 8148 | -5/Warlord | Found RU-N14's Throwing Claymores v3 8149 | -5/Warlord | Found RU-N14's Throwing Claymores v3 8151 | -5/Warlord | Found RU-N14's Throwing Claymores v3 8153 | -5/Warlord | Found RU-N14's Throwing Claymores v3 8172 | -5/Warlord | Opened Warlord's prototype stash 8179 | -5/Warlord | Found Prototype Device 8179 | -5/Warlord | Identified Exp. Phase Shifter 8184 | -5/Warlord | Warlord's base attacked by MAIN.C 8184 | -5/Warlord | Found Prototype Processor 8184 | -5/Warlord | Identified Exp. Target Analyzer 8228 | -5/Warlord | Met Warlord 8526 | -5/Warlord | Spotted B-75 Beast 8534 | -5/Warlord | Warlord forces counterattacked 8616 | -5/Warlord | Spotted Executioner 8623 | -5/Warlord | Found Prototype Processor 8625 | -5/Warlord | Identified Exp. Core Analyzer 8632 | -5/Warlord | Discovered new exit (range 15) 8652 | -5/Warlord | Lost 3 allies 8759 | -5/Warlord | Lost 3 allies 8784 | -5/Warlord | Spotted Executioner 8815 | -5/Warlord | Destroyed Executioner 8854 | -5/Warlord | Spotted B-75 Beast 8854 | -5/Warlord | Spotted B-86 Titan 8859 | -5/Warlord | Warlord base infiltrated, sounded retreat 8898 | -5/Warlord | Lost 5 allies 9029 | -5/Warlord | Spotted Executioner 9029 | -5/Warlord | Spotted Executioner 9029 | -5/Warlord | Spotted Striker 9049 | -5/Warlord | Identified exit to Proximity Caves 9050 | -5/Warlord | P-80 Master assimilated allied C9-X3L(c) 9112 | -5/Warlord | Entered Proximity Caves 9141 | -4/Proximity Caves | Lost 15 allies 9334 | -4/Proximity Caves | Discovered exit to Factory (range 15) 9336 | -4/Proximity Caves | Entered Factory 9336 | -4/Factory | Evolved 2 slots: Weapon x2 9337 | -4/Factory | Identified exit to Research 9337 | -4/Factory | Identified exit to Upper Caves 9338 | -4/Factory | Identified exit to Armory 9427 | -4/Factory | Discovered exit to Research (range 5) 9478 | -4/Factory | Entered Upper Caves 9479 | -4/Upper Caves | Learned 8 Research zone layouts 9569 | -4/Upper Caves | Discovered new exit (range 10) 9570 | -4/Upper Caves | Identified exit to Upper Caves 9572 | -4/Upper Caves | Entered another Upper Caves area 9573 | -4/Upper Caves | Learned 4 Research zone layouts 9577 | -4/Upper Caves | Spotted B-86 Titan 9585 | -4/Upper Caves | Encountered a Warlord checkpoint 9642 | -4/Upper Caves | Discovered new exit (range 12) 9644 | -4/Upper Caves | Learned Research garrison access intel 9647 | -4/Upper Caves | Identified exit to Zhirov 9647 | -4/Upper Caves | Entered Zhirov 9647 | -4/Zhirov | Discovered new exit (range 3) 9651 | -4/Zhirov | Met Zhirov 9657 | -4/Zhirov | Found Alien Artifact 9657 | -4/Zhirov | Identified Integrated Reactor 9657 | -4/Zhirov | Installed Integrated Reactor, increased core energy generation (+10) 9683 | -4/Zhirov | Found Alien Artifact 9867 | -4/Zhirov | Attacked by Zhirov 9867 | -4/Zhirov | Destroyed Zhirov 9870 | -4/Zhirov | Destroyed Perun 9879 | -4/Zhirov | Destroyed Svarog 9888 | -4/Zhirov | Found Prototype Hackware 9889 | -4/Zhirov | Found Prototype Hackware 9894 | -4/Zhirov | Found Alien Artifact 9918 | -4/Zhirov | Learned location of Testing (-3) 9918 | -4/Zhirov | Learned location of Command (-1) 9933 | -4/Zhirov | Cloak Generator disabled 9944 | -4/Zhirov | Enhanced Grunts warped into view 10004 | -4/Zhirov | Identified exit to Proximity Caves 10248 | -4/Zhirov | Found Prototype Device 10248 | -4/Zhirov | Identified Exp. Thermal Shield 10299 | -4/Zhirov | Murdered 5 allies 10312 | -4/Zhirov | Entered Proximity Caves 10487 | -3/Proximity Caves | Spotted B-86 Titan 10488 | -3/Proximity Caves | Discovered exit to Research (range 9) 10490 | -3/Proximity Caves | Entered Research 10490 | -3/Research | Evolved 2 slots: Propulsion x2 10491 | -3/Research | Identified exit to Research 10491 | -3/Research | Identified exit to Testing 10492 | -3/Research | Loaded intel: 80 trap records 10493 | -3/Research | Loaded intel: 76 non-interactive machine locations 10494 | -3/Research | Loaded intel: 4 garrison access locations 10511 | -3/Research | Identified Deep Network Scanner 10512 | -3/Research | Identified Quantum Router 10564 | -3/Research | Identified Transdimensional Reconstructor (x2) 10727 | -3/Research | Spotted B-86 Titan 10751 | -3/Research | Build established: Hacker-Sprinter 10793 | -3/Research | Spotted B-86 Titan 10813 | -3/Research | Entered Testing 10815 | -3/Testing | Loaded intel: 20 interactive machine locations 10852 | -3/Testing | Found Med. Regenerative Plating 10866 | -3/Testing | Found Prototype Processor 10866 | -3/Testing | Identified Exp. Targeting Computer 11023 | -3/Testing | Repaired Broken Vibroblade 11043 | -3/Testing | Fabricated Vibroblade? 11065 | -3/Testing | Unchained authorized (DW-4LL) 11208 | -3/Testing | Rewired PY-W0HVBZ3HA5 11236 | -3/Testing | Found Prototype Launcher 11281 | -3/Testing | DW-4LL burst out of a wall 11450 | -3/Testing | Found Exp. Target Analyzer 11585 | -3/Testing | Destroyed DW-4LL 11592 | -3/Testing | Found Prototype Device 11592 | -3/Testing | Identified Exp. Weapon Cycler 11597 | -3/Testing | Found Prototype Ballistic Gun 11597 | -3/Testing | Identified DW-4LL's Slamshotty 11602 | -3/Testing | Found Prototype Processor 11602 | -3/Testing | Identified Exp. Armor Integrity Analyzer 11616 | -3/Testing | Identified Z-bomb Delivery System 11676 | -3/Testing | Found Prototype Energy Gun 11676 | -3/Testing | Identified Hyp. EM Gauss Rifle 11714 | -3/Testing | Discovered exit to Research (range 8) 11999 | -3/Testing | Entered Research 11999 | -2/Research | Warlord forces began assault on 0b10 11999 | -2/Research | Evolved 2 slots: Power x1, Propulsion x1 12109 | -2/Research | Research machine network offline 12117 | -2/Research | Fabricated Exp. Signal Interpreter? 12332 | -2/Research | Met up with Warlord 12400 | -2/Research | Discovered new exit (range 15) 12428 | -2/Research | Identified exit to Access 12463 | -2/Research | Borebot progress halted 12474 | -2/Research | Found Prototype Device 12474 | -2/Research | Identified Exp. Focal Shield 12498 | -2/Research | Found Prototype Device 12625 | -2/Research | Identified Exp. Thermal Defense Suite 12636 | -2/Research | Borebot progress halted 12682 | -2/Research | Discovered exit to Access (range 10) 12700 | -2/Research | Spotted Striker 12724 | -2/Research | Spotted Executioner 12832 | -2/Research | Discovered new exit (range 8) 12838 | -2/Research | Identified exit to Quarantine 12912 | -2/Research | Borebot progress halted 12992 | -2/Research | Took control of God Mode 12992 | -2/Research | Attacked by Warlord forces 12995 | -2/Research | Spotted MT-87G(K) 12995 | -2/Research | Attacked by Warlord 13001 | -2/Research | Allies destroyed MT-87G(K) 13003 | -2/Research | Spotted Executioner 13009 | -2/Research | Allies destroyed DD-05H 13011 | -2/Research | Spotted Striker 13034 | -2/Research | Allies destroyed Warlord 13036 | -2/Research | Warlord destroyed during the assault 13069 | -2/Research | Entered Quarantine 13071 | -2/Quarantine | Loaded intel: 3 scanalyzer locations 13243 | -2/Quarantine | Found Alien Artifact 13359 | -2/Quarantine | Build established: Machinist-Scout 13448 | -2/Quarantine | Discovered exit to Access (range 22) 13525 | -2/Quarantine | Found Alien Artifact 13572 | -2/Quarantine | Spotted Fortress 13586 | -2/Quarantine | Discovered new exit (range 7) 13586 | -2/Quarantine | Discovered new exit (range 6) 13587 | -2/Quarantine | Identified exit to Protoforge 13811 | -2/Quarantine | Entered Protoforge 13845 | -2/Protoforge | Spotted Hotshot 13845 | -2/Protoforge | Spotted Hotshot 13845 | -2/Protoforge | Spotted Hotshot 13845 | -2/Protoforge | Spotted Hotshot 13862 | -2/Protoforge | Discovered exit to Access (range 15) 13864 | -2/Protoforge | Initialized slip node 13964 | -2/Protoforge | Build established: Machinist-Ninja 13994 | -2/Protoforge | Spotted Decapitator 13994 | -2/Protoforge | Spotted Decapitator 13994 | -2/Protoforge | Spotted Decapitator 13994 | -2/Protoforge | Spotted Decapitator 14038 | -2/Protoforge | Found Prototype Slashing Weapon 14038 | -2/Protoforge | Identified Cep. Deflector Sword 14040 | -2/Protoforge | Found Prototype Piercing Weapon 14040 | -2/Protoforge | Identified Exp. Jetlance 14049 | -2/Protoforge | Found Cep. Deflector Sword 14055 | -2/Protoforge | Found Exp. Jetlance 14058 | -2/Protoforge | Found Prototype Ballistic Cannon 14058 | -2/Protoforge | Identified Cep. Helical Railcannon 14066 | -2/Protoforge | Found Prototype Energy Cannon 14066 | -2/Protoforge | Identified Cep. Plasma Driver 14073 | -2/Protoforge | Found Cep. Plasma Driver 14111 | -2/Protoforge | Found Prototype Energy Gun 14111 | -2/Protoforge | Identified Cep. Variable Chargecaster 14115 | -2/Protoforge | Found Prototype Energy Gun 14115 | -2/Protoforge | Identified Cep. Lightning Penetrator 14231 | -2/Protoforge | Superfortress began startup sequence 14315 | -2/Protoforge | Found Prototype Storage 14315 | -2/Protoforge | Identified Cep. NT7 Matterbank 14317 | -2/Protoforge | Found Prototype Storage 14317 | -2/Protoforge | Identified Cep. Chromion Battery 14338 | -2/Protoforge | Found Prototype Device 14342 | -2/Protoforge | Found Cep. Weapon Articulator 14344 | -2/Protoforge | Spotted Immortal 14346 | -2/Protoforge | Spotted Decapitator 14346 | -2/Protoforge | Spotted Decapitator 14346 | -2/Protoforge | Spotted Decapitator 14346 | -2/Protoforge | Spotted Decapitator 14350 | -2/Protoforge | Destroyed Decapitator 14354 | -2/Protoforge | Destroyed Decapitator 14358 | -2/Protoforge | Destroyed Decapitator 14360 | -2/Protoforge | Destroyed Decapitator 14433 | -2/Protoforge | Destroyed Immortal 14492 | -2/Protoforge | Spotted V139-v 14492 | -2/Protoforge | Spotted V578-a 14492 | -2/Protoforge | Spotted V691-e 14514 | -2/Protoforge | Spotted Decapitator 14514 | -2/Protoforge | Spotted Decapitator 14514 | -2/Protoforge | Spotted V693-b 14514 | -2/Protoforge | Spotted V189-q 14561 | -2/Protoforge | First assault squad dispatched 14616 | -2/Protoforge | Found Cep. Antigrav Storage Unit 14621 | -2/Protoforge | Found Faulty Cep. Gyrokinetic System 14627 | -2/Protoforge | Identified Crosscalibrator 14632 | -2/Protoforge | Found Cep. Gyrokinetic System 14634 | -2/Protoforge | Found Prototype Hover Unit 14635 | -2/Protoforge | Identified Cep. Combat Aerolev Unit 14685 | -2/Protoforge | Found Prototype Device 14685 | -2/Protoforge | Identified Cep. Phase Shift Module 14697 | -2/Protoforge | Found Cep. Phase Shift Module 14712 | -2/Protoforge | Found Cep. Reaction Jets 14844 | -2/Protoforge | Found Cep. Energy Mantle 14846 | -2/Protoforge | Found Cep. Energy Mantle 14848 | -2/Protoforge | Found Cep. Projectile Intercept Suite 14862 | -2/Protoforge | Found Cep. Weapon Articulator 14895 | -2/Protoforge | System corruption reached 10% 15026 | -2/Protoforge | Spotted V388-h 15026 | -2/Protoforge | Spotted V204-q 15032 | -2/Protoforge | Spotted V723-r 15063 | -2/Protoforge | Found Femtoactuators 15067 | -2/Protoforge | Found Faulty Femtoactuators 15095 | -2/Protoforge | Destroyed Decapitator 15099 | -2/Protoforge | Destroyed Decapitator 15105 | -2/Protoforge | Destroyed Decapitator 15107 | -2/Protoforge | Destroyed Decapitator 15127 | -2/Protoforge | Found Cep. Network Penetrator 15130 | -2/Protoforge | Found Exp. Active Sensor Suite 15136 | -2/Protoforge | Spotted V070-t 15144 | -2/Protoforge | Destroyed V070-t 15163 | -2/Protoforge | Found Cep. Network Penetrator 15265 | -2/Protoforge | Spotted Immortal 15265 | -2/Protoforge | Spotted Immortal 15373 | -2/Protoforge | Destroyed Immortal 15376 | -2/Protoforge | Spotted V566-i 15376 | -2/Protoforge | Spotted V430-k 15406 | -2/Protoforge | Destroyed Immortal 15432 | -2/Protoforge | Found Prototype Power Core 15432 | -2/Protoforge | Identified Cep. Zero-point Core 15439 | -2/Protoforge | Found Faulty Cep. Zero-point Core 15605 | -2/Protoforge | Found Faulty Cep. Deflector Sword 15614 | -2/Protoforge | Found Exp. Jetlance 15690 | -2/Protoforge | Spotted AP7-3 15691 | -2/Protoforge | Spotted AP7-3 15734 | -2/Protoforge | System corruption reached 30% 15742 | -2/Protoforge | Destroyed AP7-3 15743 | -2/Protoforge | Destroyed AP7-3 15782 | -2/Protoforge | Found Faulty Cep. Cloak Mesh 15785 | -2/Protoforge | Found Cep. Core Analysis Suite 15788 | -2/Protoforge | Found Faulty Cep. Cloak Mesh 15797 | -2/Protoforge | Found Cep. Impact Drone Bay 15798 | -2/Protoforge | Found Cep. Impact Drone Bay 15825 | -2/Protoforge | Warped through subspace to slip node 15899 | -2/Protoforge | Entered Access 15899 | -1/Access | Evolved 2 slots: Power x1, Utility x1 16021 | -1/Access | Identified exit to Command 16032 | -1/Access | Identified Subatomic Replicator 16182 | -1/Access | Spotted B-99 Colossus 16239 | -1/Access | Entered Command 16327 | -1/Command | Build established: Wizard-Sprinter 16336 | -1/Command | Used Subatomic Replicator to create Alien Artifact 16338 | -1/Command | Identified Supercharged TR 16338 | -1/Command | Warped through subspace to slip node 16338 | -1/Command | Discovered new exit (range 4) 16354 | -1/Command | Entered Access_0 16355 | -1/Access_0 | Met Architect 16363 | -1/Access_0 | Destroyed A8 16369 | -1/Access_0 | Architect warped through subspace 16408 | -1/Access_0 | Architect warped through subspace 16430 | -1/Access_0 | Subspace Access Node disabled 16437 | -1/Access_0 | Architect warped through subspace 16459 | -1/Access_0 | Found Exp. Phase Shifter 16463 | -1/Access_0 | Architect warped through subspace 16466 | -1/Access_0 | A6 warped into view 16487 | -1/Access_0 | Architect warped through subspace 16494 | -1/Access_0 | Destroyed A6 16507 | -1/Access_0 | Architect warped through subspace 16524 | -1/Access_0 | Architect warped through subspace 16534 | -1/Access_0 | Subspace Access Node disabled 16545 | -1/Access_0 | Architect warped through subspace 16561 | -1/Access_0 | Architect warped through subspace 16601 | -1/Access_0 | A5 warped into view 16608 | -1/Access_0 | Destroyed A5 16626 | -1/Access_0 | Architect warped through subspace 16647 | -1/Access_0 | Architect warped through subspace 16653 | -1/Access_0 | Subspace Access Node disabled 16670 | -1/Access_0 | Architect warped through subspace 16685 | -1/Access_0 | Subspace Access Node disabled 16714 | -1/Access_0 | Destroyed A2 16716 | -1/Access_0 | Extracted Singularity Gate Test 138-C access codes from A2's data core 16742 | -1/Access_0 | Singularity Gate disabled 16748 | -1/Access_0 | Singularity Gate disabled 16777 | -1/Access_0 | Destroyed Architect 16778 | -1/Access_0 | Extracted unknown sensor trigger ID from Architect's data core 16779 | -1/Access_0 | Found Alien Artifact 16798 | -1/Access_0 | A4 warped into view 16816 | -1/Access_0 | Destroyed A4 16862 | -1/Access_0 | Build established: Gladiator 16955 | -1/Access_0 | Found Prototype Protection 16955 | -1/Access_0 | Identified Exp. Powered Armor 16957 | -1/Access_0 | Found Exp. Powered Armor 17071 | -1/Access_0 | A3 warped into view 17092 | -1/Access_0 | Destroyed A3 17098 | -1/Access_0 | Identified Hpw. Transdimensional Reconstructor 17098 | -1/Access_0 | Warped through subspace to slip node 17098 | -1/Access_0 | Discovered new exit (range 8) 17103 | *** | Escaped! Last Messages --------------- 17082_ A3 Prototype Device severed. 17083_ System corrupted: Matter fused (-8). 17083_ A3 suffers critical hit (Impale). 17083_ Cep. Deflector Sword follow-up attack on A3. 17083_ A3 Prototype Storage severed. 17085_ HV Slug penetrates Wall. 17085_ HV Slug penetrates Earth. 17086_ A3 suffers critical hit (Impale). 17088_ Cep. Deflector Sword follow-up attack on A3. 17088_ A3 Prototype Device severed. 17088_ Cep. Deflector Sword follow-up attack on A3. 17090_ HV Slug penetrates Wall. 17091_ Cep. Deflector Sword follow-up attack on A3. 17092_ A3: "How even..." 17092_ A3 destroyed. [Achievement: Serial Killer] 17094_ Acquired 18 matter. 17098_ Identified Hpw. Transdimensional Reconstructor. 17098_ Warped through subspace, drawn to slip node. 17098_ EXIT=FOUND Map ----- +----------------------------------------------------+ | | | | | | | | | | | | | | | | | | | | | | | | | | | | | | | | | ?????????????????????????????????????????????????? | | ?????????????????????????????????????????????????? | | ?????????????????????????????????????????????????? | | ?????????????????????????????????????????????????? | | ?????????????????????????????????????????????????? | | ?????????????????????????????????????????????????? | | ????????????????????????###??????????????????????? | | ???????????????????????## ##?????????????????????? | | ???????????????????????# #?????????????????????? | | ???????????????????????# @ #?????????????????????? | | ??????????????????????## #?????????????????????? | | ??????????????????????# #?????????????????????? | | ??????????????????????# ##?????????????????????? | | ??????????????????????## #?????????????????????? | | ??????????????????????# #?????????????????????? | | ??????????????????????# ##?????????????????????? | | ??????????????????????# < #?????????????????????? | | ??????????????????????# ##?????????????????????? | | ??????????????????????## #??????????????????????? | | ???????????????????????####??????????????????????? | | ?????????????????????????????????????????????????? | | ?????????????????????????????????????????????????? | | ?????????????????????????????????????????????????? | | ?????????????????????????????????????????????????? | | ?????????????????????????????????????????????????? | | ?????????????????????????????????????????????????? | | ?????????????????????????????????????????????????? | | ?????????????????????????????????????????????????? | | ?????????????????????????????????????????????????? | | ?????????????????????????????????????????????????? | | ?????????????????????????????????????????????????? | | ?????????????????????????????????????????????????? | | ?????????????????????????????????????????????????? | | ?????????????????????????????????????????????????? | +----------------------------------------------------+ Best States ------------- Heat Dissipation 52 Coolant Potential 80 Energy Generation 95 Energy Capacity 590 Matter Stores 300 Matter Capacity 300 Sight Range 23 Robot Scan Range 16 Terrain Scan Range 16 Terrain Scan Density 10 ECM Strength 1 Jamming Range 16 Cloak Strength 9 Additional Mass Support 16 Armor Coverage 400 Resistance: TH 15 Weapon Shielding 90 Projectile Deflection 15 Melee Speed Boost 50 Phase Shifting 25 Evasion (%) 101 Targeting Accuracy 30 Melee Accuracy 8 Target Analysis 10 Core Analysis 11 Armor Integrity Analysis 50 Recoil Reduction 2 Offensive Hacking 100 Defensive Hacking 25 Authchip Count 3 Item Schematics ----------------- Combat Drone Bay | -7/Data Miner | Free Lgt. Regenerative Plating | -7/Data Miner | Free Cld. Cesium-ion Thruster | -7/Data Miner | Free Thermal Defense Suite | -7/Data Miner | Free Antimatter Cannon | -7/Data Miner | Free Thunder Leg | -7/Data Miner | Free Adv. System Shield | -7/Data Miner | Free Adv. Plasma Cannon | -7/Data Miner | Free Imp. Core Shielding | -7/Data Miner | Free Imp. Transmission Jammer | -7/Data Miner | Free Adv. Reaction Control System | -7/Data Miner | Free Imp. Linear Gravjet | -7/Data Miner | Free Cld. Nuclear Pulse Thruster | -5/Factory | Hacked Nanoactuators | -5/Factory | Hacked Vibroblade | -5/Factory | Hacked Exp. Utility Shielding | -5/Factory | Hacked Exp. Signal Interpreter | -5/Factory | Hacked Graphene Brace | -5/Factory | Hacked Assault Drone Bay | -4/Zhirov | Free Exp. Heat Sink | -4/Zhirov | Free Exp. Optical Array | -4/Zhirov | Free Imp. Arc Thrower | -4/Zhirov | Free Cld. Field Propulsion Drive | -3/Research | Scanalyzed Cld. Impulse Thruster | -3/Research | Scanalyzed Coolant Network | -3/Testing | Archive Imp. Diametric Drive | -3/Testing | Archive Adv. KE Penetrator | -3/Testing | Archive Adv. Gravity Neutralizer | -2/Research | Scanalyzed Exp. Weapon Cycler | -2/Research | Scanalyzed Exp. Thermal Generator | -2/Protoforge | Archive Prc. Phase Gun | -2/Protoforge | Archive Adv. Variable Charge Gun | -2/Protoforge | Archive Prc. Matter Filter | -2/Protoforge | Archive Adv. Energy Well | -2/Protoforge | Archive Centrium Heavy Treads | -2/Protoforge | Archive Cld. Phase Gun | -2/Protoforge | Archive Electron Diverter | -2/Protoforge | Archive Robot Schematics ------------------ B-48 Gladiator | -7/Data Miner | Free A-15 Conveyor | -7/Data Miner | Free G-50 Soldier | -7/Data Miner | Free H-55 Commando | -7/Data Miner | Free H-66 Slayer | -7/Data Miner | Free K-01 Serf | -5/Factory | Archive T-07 Excavator | -5/Factory | Archive A-02 Transporter | -5/Factory | Archive R-06 Scavenger | -5/Factory | Archive R-10 Processor | -5/Factory | Archive M-14 Sweeper | -5/Factory | Archive M-22 Extractor | -5/Factory | Archive M-30 Cleanser | -5/Factory | Archive M-13 Machinist | -5/Factory | Archive M-28 Smith | -5/Factory | Archive M-36 Artificer | -5/Factory | Archive O-16 Technician | -5/Factory | Archive O-24 Administrator | -5/Factory | Archive O-32 Director | -5/Factory | Archive W-16 Scout | -5/Factory | Archive W-25 Informer | -5/Factory | Archive W-44 Eye | -5/Factory | Archive S-10 Pest | -5/Factory | Archive S-27 Virus | -5/Factory | Archive S-43 Plague | -5/Factory | Archive G-34 Mercenary | -5/Factory | Archive G-47 Trooper | -5/Factory | Archive G-67 Veteran | -5/Factory | Archive G-73 Enforcer | -5/Factory | Archive B-36 Bruiser | -5/Factory | Archive B-60 Warrior | -5/Factory | Archive B-74 Champion | -5/Factory | Archive L-31 Rogue | -5/Factory | Archive L-41 Fighter | -5/Factory | Archive L-61 Swordsman | -5/Factory | Archive Y-45 Defender | -5/Factory | Archive Y-54 Guardian | -5/Factory | Archive Y-64 Sentinel | -5/Factory | Archive Y-72 Warden | -5/Factory | Archive D-53 Grenadier | -5/Factory | Archive D-63 Destroyer | -5/Factory | Archive D-83 Annihilator | -5/Factory | Archive X-57 Shotgunner | -5/Factory | Archive X-62 Marksman | -5/Factory | Archive X-67 Chaingunner | -5/Factory | Archive X-72 Disruptor | -5/Factory | Archive X-77 Beamer | -5/Factory | Archive X-82 Rainmaker | -5/Factory | Archive X-87 Electro | -5/Factory | Archive H-77 Assassin | -5/Factory | Archive H-88 Terminator | -5/Factory | Archive P-60 Hacker | -5/Factory | Archive P-70 Sage | -5/Factory | Archive P-80 Master | -5/Factory | Archive Fabricated ------------ Adv. System Shield | x1 | -6/Factory Enh. Nova Cannon | x2 | -5/Factory | Preloaded Adv. Reaction Control System | x2 | -5/Factory | Preloaded Nanoactuators | x2 | -5/Factory Vibroblade | x1 | -5/Factory | Authchip Cld. Cesium-ion Thruster | x1 | -5/Factory | Authchip Cld. Nuclear Pulse Thruster | x1 | -5/Factory | Authchip Cld. Nuclear Pulse Thruster | x1 | -5/Factory | Authchip Cld. Nuclear Pulse Thruster | x1 | -5/Factory | Authchip Vibroblade | x1 | -3/Testing | Authchip Exp. Signal Interpreter | x1 | -2/Research Repaired ---------- Imp. Surge Thruster | 20% | -7/Factory Lgt. Fission Core | 56% | -5/Factory Cld. Cesium-ion Thruster | 4% | -5/Factory Cld. Nuclear Pulse Thruster | 58% | -5/Factory Hyp. Railgun | 49% | -5/Factory Lgt. Fission Core | 26% | -5/Factory Vibroblade | 28% | -3/Testing | Broken Studied --------- Surge Thruster | -7/Factory | Hacked Imp. Surge Thruster | -6/Factory | Hacked Power Sword | -6/Factory | Hacked Lgt. Fission Core | -5/Factory | Hacked Nuclear Pulse Array | -5/Factory | Hacked Hyp. Railgun | -4/Factory | Hacked Enh. Nova Cannon | -3/Research | Hacked Impulse Thruster Array | -3/Testing | Hacked Lgt. Antimatter Reactor | -3/Testing | Hacked Com. HERF Cannon | -1/Access | Hacked Alien Tech Used ----------------- Integrated Reactor Dimensional Node Initializer Transdimensional Reconstructor Subatomic Replicator Supercharged TR High-powered Transdimensional Reconstructor Achievements -------------- Godhack Serial Killer What Happened At The End There Challenges ------------ None Game ------ Seed PartitionShockSteel Manual? 0 Play Time 06:25:40 Cumulative 974.6 hours Start 2025.11.04 @ 19:51:37 End 2025.11.05 @ 11:10:32 Sessions 3 Manual Loads 0 Difficulty Rogue Special Mode None Game No. 303 Rogue 301 Adventurer 2 Explorer 0 Win Type 0 Total 68 Types 20/15/15/1/1/1/11/1/1/2 Lore% 97 Gallery% 94 Achievement% 81 Wizard Run 0 Options --------- Layout 0 ASCII 0 Keyboard 1 Movement Numpad Keybinds 0 Fullscreen 1 Font 24/Smallcaps Map View 76x50 Zoom Use 0% Tactical HUD 1 Map Filters NONE Filters NONE Steam 1 RUN: 6d82b37a-784f-49df-a9cf-18463ca63b4f